{"text_format":"1","workbook":"xlsx","n_sheets":50,"sheets":["Control","ALARM","Form","Technical_Questionnaire","Provider Protection","Cloud Protection","Site Guardian #1","Site Guardian #2","Site Guardian #3","Site Guardian #4","Технический опросник","Data","List","MFW","Botnet Protection","WAF","System Settings","Network Object Definition","Service Object Definition","Interface configuration","HA Cluster","DHCP Server","Firewall Policy","NAT","Static routing","Proxy ARP","BGP","RIP","OSPF","VPN Site-to-Site GRE","VPN Site-to-Site IPSec","Web Filtering","HTTPS Inspection","Geo Protection","BFD","Multicast Routing","Policy-Based Routing","DNS Protection","Certificates","Application Control","Content Control","User Identity","Email Security","DLP","Explicit Proxy","Malware Protection","IPS","Sandbox","Remote Access VPN","SSL VPN"],"not_rendered":{"charts":0,"images":73,"macros":1,"external_links":0,"defined_names":40,"comments":36,"pivot_tables":0},"unopened":[],"bounds":{"document_bytes":16777216,"sheet_cells":100000,"rows_first":2000,"rows_last":500,"rows_between":2000,"halvings":0,"cell_chars":16384,"cell_head_chars":4096},"cells_cut":0,"cells_raw":0,"read":"whole","date_system":"1900"}

{"sheet":"Control","index":0,"n_rows":2,"n_cols":3,"rows_kept":2,"cut":false,"hidden":true,"merged":[]}
[{"$f":"INDIRECT(Form!B15)","v":"DNS changing "},"Internet_Direct_Domain","DNS changing "]
["Нестандартные изменения параметров "]

{"sheet":"ALARM","index":1,"n_rows":26,"n_cols":11,"rows_kept":26,"cut":false,"hidden":true,"merged":[[1,1,1,12],[3,1,3,12]]}
[]
[]
[]
[null," Обязательно выполните следующие действия:"]
[]
[null,"1. если есть запрос от Excel, щелкните кнопкой ",null,null,null,"«Включить содержимое»",null,null," или кнопкой",null,"«Включить макросы»"]
[]
[null,"2.  если нет запроса от Excel, то:"]
[]
[null,"2.1.  установите опцию MS EXCEL <Выполнение макросов разрешено>:"]
[]
[null,"> Excel 2003 – Параметры/ Уровень безопасности / Безопасность / низкая"]
[]
[null,"> Excel 2007 – Excel options / Trust Center / Macro settings / Enable all macros"]
[]
[null,"> Excel 2010 – Excel options / Trust Center / Trust Center options/ Macro settings / Enable all macros"]
[]
[null,"> Excel 365 –  Параметры/  Центр управления безопасностью /  Параметры Центра управления безопасностью / Параметры макросов / Включить все макросы"]
[]
[null,"2.2. закройте файл инструмента, а затем откройте файл инструмента повторно."]
[]
[]
[]
[]
[]
[null," "]

{"sheet":"Form","index":2,"n_rows":35,"n_cols":2,"rows_kept":35,"cut":false,"hidden":false,"merged":[[2,0,2,1],[5,0,5,1],[13,0,13,1]]}
[]
[]
["Запрос на изменение параметров услуги \n"]
[]
[]
["Данные о Клиенте"]
["Дата:","2011-01-01"]
["Номер Договора:","#11111111"]
["Ф.И.О. контактного лица Клиента, заполняющего заявку:","Иванов Иван"]
["телефон контактного лица Клиента, заполняющего заявку:",1111111111]
["e-mail контактного лица Клиента, заполняющего заявку: \n","Ivanov@ivanov.ru"]
[]
[]
["Данные об изменениях"]
["Услуга (выберите услугу из списка)","Internet_Direct_Domain"]
["Тип запроса (выберите тип из списка)","DNS changing "]
["Комментарии к запросу:"]
[{"$f":"HLOOKUP(Form!B16,DataRange,3,0)","v":"a) Имя DNS-серверов (не менее двух)"}]
[{"$f":"HLOOKUP(Form!B16,DataRange,4,0)","v":"b)  IP-адреса"}]
[{"$f":"HLOOKUP(Form!B16,DataRange,5,0)","v":" "}]
[{"$f":"HLOOKUP(Form!B16,DataRange,6,0)","v":" "}]
[{"$f":"HLOOKUP(Form!B16,DataRange,7,0)","v":" "}]
[{"$f":"HLOOKUP(Form!B16,DataRange,8,)","v":" "}]
[{"$f":"HLOOKUP(Form!B16,DataRange,9,)","v":" "}]
[{"$f":"HLOOKUP(Form!B16,DataRange,10,)","v":" "}]
[{"$f":"HLOOKUP(Form!B16,DataRange,11,)","v":" "}]
[{"$f":"HLOOKUP(Form!B16,DataRange,12,)","v":" "}]
[{"$f":"HLOOKUP(Form!B16,DataRange,13,)","v":" "}]
[{"$f":"HLOOKUP(Form!B16,DataRange,14,)","v":" "}]
[{"$f":"HLOOKUP(Form!B16,DataRange,15,)","v":" "}]
[{"$f":"HLOOKUP(Form!B16,DataRange,16,)","v":" "}]
[{"$f":"HLOOKUP(Form!B16,DataRange,17,)","v":" "}]
[{"$f":"HLOOKUP(Form!B16,DataRange,18,)","v":" "}]
[{"$f":"HLOOKUP(Form!B16,DataRange,19,)","v":" "}]
[{"$f":"HLOOKUP(Form!B16,DataRange,20,)","v":" "}]

{"sheet":"Technical_Questionnaire","index":3,"n_rows":22,"n_cols":9,"rows_kept":22,"cut":false,"hidden":true,"merged":[[11,0,12,8],[13,3,13,4],[21,1,21,8],[1,0,1,8],[2,0,2,8],[3,0,3,8],[4,0,5,0],[4,1,5,1],[4,2,5,2],[4,3,5,3],[4,4,5,4],[4,5,4,8]]}
[]
["Технический опросник"]
["Дата «___» ______ 20___ г."]
["(описание сетевых параметров Ресурсов Клиента, подлежащих защите от DoS/DDoS-атак)"]
["№","Ф.И.О.*","Должность","Телефон","e-mail","Роли"]
[null,null,null,null,null,"Доступ в ЛК Комплекса DDoS защиты","Доступ в ЛК Site Guardian","Обращение в ТП и в SOC круглосуточно","Горячий контакт для круглосуточной связи с Клиентом "]
[1,null,null,null,null,"Выбрать","Выбрать","Выбрать","Выбрать"]
[2,null,null,null,null,"Выбрать","Выбрать","Выбрать","Выбрать"]
[3,null,null,null,null,"Выбрать","Выбрать","Выбрать","Выбрать"]
[4,null,null,null,null,"Выбрать","Выбрать","Выбрать","Выбрать"]
[5,null,null,null,null,"Выбрать","Выбрать","Выбрать","Выбрать"]
["Данные Представителей Клиента будут использоваться в качестве создания учетных записей для доступа к WEB-интерфейсу Комплекса DDoS-защиты и/или Site Guardian"]
[]
[null,"Оказываемая Услуга (выбрать)",null,"Security Operation Center Orange (SOC Orange)"]
[null,null,null,"e-mail ","rus.soc@orange.com"]
[null,null,null,"Телефон (круглосуточно)","+7(495)221-32-80"]
[]
[]
[]
[]
[]
[null,"* Клиент гарантирует, что лица, перечисленные в настоящем опроснике, согласны на обработку передаваемых персональных данных в автоматизированной системе Orange Business Services.\nВ порядке, предусмотренном ФЗ от 27-07-2006 № 152-ФЗ «О персональных данных», Клиент поручает Orange обработку персональных данных, указанных в таблице выше физических лиц (с их согласия). Orange, осуществляющий обработку персональных данных по поручению Клиента, обязан соблюдать требования к защите персональных данных, принципы и правила обработки персональных данных, предусмотренные законодательством РФ. Orange обязуется соблюдать конфиденциальность персональных данных и обеспечивать безопасность персональных данных при их обработке."]

{"sheet":"Provider Protection","index":4,"n_rows":51,"n_cols":6,"rows_kept":51,"cut":false,"hidden":true,"merged":[[21,0,21,5],[1,0,1,4],[3,0,3,1],[4,0,4,4],[5,0,6,3],[7,0,8,3],[9,0,10,3],[11,0,12,3],[13,0,14,3],[15,0,16,3],[17,0,18,3],[20,0,20,1],[34,0,35,0],[34,3,35,3],[23,0,25,0],[23,1,25,1],[23,2,25,2],[23,3,25,3],[26,0,28,0],[26,1,28,1],[26,2,28,2],[26,3,28,3],[29,0,31,0],[29,1,31,1],[29,2,31,2],[29,3,31,3],[33,0,33,5],[36,0,39,0],[36,1,39,1],[36,3,39,3],[40,0,41,0],[40,1,41,1],[40,3,41,3],[51,0,63,5],[40,4,41,4],[40,5,41,5],[42,0,43,0],[42,1,43,1],[42,3,43,3],[42,4,43,4],[42,5,43,5],[44,0,46,0],[44,1,46,1],[44,2,46,2],[44,3,46,3],[50,0,50,5]]}
[]
["Технический Опросник: Provider Protection"]
[]
["Таблица 1"]
["Заполняется для подключения Provider Protection"]
["Защищаемый префикс на 1 защищаемый порт (не более /21). Защищаемые IP-адреса, IP-сети\n\n(Основной, общий managed object клиента. Содержит перечень всех защищаемых IP-адресов (диапазонов) клиента. Может состоять из нескольких диапазонов IP-адресов. Суммарное кол-во IP-адресов не должно превышать /21 (8 сетей по 256 адресов)."]
[null,null,null,null,"Заполнение обязательно"]
["Описание защищаемых Ресурсов с обязательным перечислением работающих сетевых сервисов и их портов\n\n(Для сбора более детальной статистики по Ресурсам Клиента, требующим защиты. Также позволит инженерам более тонко и эффективно настроить детектирование атак и применять контрмеры. При внесении в список DNS-сервера, необходимо указать его тип: рекурсивный открытый/ рекурсивный закрытый/ авторитативный)\n\n(При отметке варианта «Да» обязательно заполнение Таблицы 2 в конце опросника)"]
[null,null,null,null,"Заполнение обязательно"]
["Префиксы (IP-адреса), с которых разрешён доступ клиенту к WEB-интерфейсу\n\n(С указанных IP-адресов (диапазонов адресов) Клиенту будет открыт доступ к WEB-интерфейсу) "]
[null,null,null,null,"Заполнение обязательно"]
["Электронный адрес (e-mail) для уведомлений от системы и предоставления ежемесячных отчетов\n\n(На указанные адреса будут приходить автоматические уведомления от Комплекса DDoS-защиты, а также ежемесячные отчеты. Может быть указано несколько e-mail адресов. Желательно создавать лист рассылки, который будет прописан в системе.)"]
[null,null,null,null,"Заполнение обязательно"]
["Подключение опции Cloud Signaling (если применимо)\n\n(При отметке «Да», нужно указать IP-адрес Клиентского оборудования)"]
[]
["Использование автоматически загружаемого Blacklist\n\n(При отметке «Да», нужно указать адрес http/https и логин/пароль, если применимо)"]
[]
["Использование автоматически загружаемого Whitelist\n\n(При отметке «Да», нужно указать адрес http/https и логин/пароль, если применимо)"]
[]
[]
["Таблица 2"]
["Список технических характеристик защищаемых Ресурсов Клиента для защиты на уровне L3/L4"]
["№","IP-адрес/Пул IP-адресов","DNS-имя(имена)","Сервис","Протоколы","Сетевые порты"]
[1,"-","-","-","-","-"]
[null,null,null,null,"-","-"]
[null,null,null,null,"-","-"]
[2,"-","-","-","-","-"]
[null,null,null,null,"-","-"]
[null,null,null,null,"-","-"]
[3,"-","-","-","-","-"]
[null,null,null,null,"-","-"]
[null,null,null,null,"-","-"]
["…","-","-","-","-","-"]
["Пример заполнения"]
[1,"194.31.12.2","domain.com","WEB-сервер","HTTP","TCP 80,81,88"]
[null,"194.31.12.3","example.ru",null,"HTTPS","TCP 443"]
[2,"194.31.12.4","mail.domain.com","Почтовый сервер","SMTP(S)","TCP 25,465,587,2525"]
[null,null,"mail.example.ru",null,"POP3(S)","TCP 110,995"]
[null,null,null,null,"IMAP(S)","TCP 143,993"]
[null,null,null,null,"HTTPS","TCP 443"]
[3,"194.31.12.5","ns1.domain.com","DNS-сервер (рекурсивный открытый/ рекурсивный закрытый/ авторитативный)","DNS","TCP 53, UDP 53"]
[null,null,"ns1.example.ru"]
[4,"195.32.42.12","ns2.domain.com","DNS-сервер (рекурсивный открытый/ рекурсивный закрытый/ авторитативный)","DNS","TCP 53, UDP 53"]
[null,null,"ns2.example.ru"]
[5,"194.31.12.6","vpn.domain.com","VPN шлюз","PPTP","GRE, TCP 1723"]
[null,null,null,null,"L2TP","TCP 1701, UDP 1701"]
[null,null,null,null,"SSTP","TCP 443"]
[]
[]
[]
["Комментарий"]

{"sheet":"Cloud Protection","index":5,"n_rows":70,"n_cols":10,"rows_kept":70,"cut":false,"hidden":true,"merged":[[9,0,10,4],[1,0,1,5],[3,0,3,1],[4,0,4,5],[5,0,6,4],[7,0,8,4],[11,0,12,4],[14,0,14,1],[15,0,15,9],[17,0,19,0],[17,1,19,1],[17,2,19,2],[17,4,19,4],[20,0,22,0],[20,1,22,1],[20,2,22,2],[20,4,22,4],[23,0,25,0],[23,1,25,1],[23,2,25,2],[23,4,25,4],[26,0,26,9],[27,0,28,0],[27,4,28,4],[29,0,30,0],[29,1,30,1],[29,3,30,3],[29,4,30,4],[29,5,30,5],[29,6,30,6],[29,7,30,7],[29,8,30,8],[29,9,30,9],[31,0,32,0],[31,1,32,1],[31,3,32,3],[31,4,32,4],[31,5,32,5],[31,6,32,6],[31,7,32,7],[31,8,32,8],[31,9,32,9],[33,7,35,7],[33,8,35,8],[33,9,35,9],[33,4,35,4],[39,0,39,8],[45,0,45,7],[54,0,54,1],[55,0,55,9],[38,0,38,1],[33,0,35,0],[33,1,35,1],[33,2,35,2],[33,3,35,3],[70,0,82,5],[56,6,57,6],[56,7,57,7],[56,8,57,8],[56,9,57,9],[62,0,62,9],[69,0,69,5],[56,0,57,0],[56,1,57,1],[56,2,57,2],[56,3,56,4],[56,5,57,5]]}
[]
["Технический Опросник: Сloud Protection"]
[]
["Таблица 1"]
["Заполняется для подключения Cloud Protection"]
["Префиксы (IP-адреса), с которых разрешён доступ клиенту к WEB-интерфейсу\n\n(С указанных IP-адресов (диапазонов адресов) Клиенту будет открыт доступ к WEB-интерфейсу) "]
[null,null,null,null,null,"Заполнение обязательно"]
["Электронный адрес (e-mail) для уведомлений от системы и предоставления ежемесячных отчетов\n\n(На указанные адреса будут приходить автоматические уведомления от Комплекса DDoS-защиты, а также ежемесячные отчеты. Может быть указано несколько e-mail адресов. Желательно создавать лист рассылки, который будет прописан в системе.)"]
[null,null,null,null,null,"Заполнение обязательно"]
["Использование автоматически загружаемого Blacklist\n\n(При отметке «Да», нужно указать адрес http/https и логин/пароль, если применимо)"]
[]
["Использование автоматически загружаемого Whitelist\n\n(При отметке «Да», нужно указать адрес http/https и логин/пароль, если применимо)"]
[]
[]
["Таблица 2"]
["Список технических характеристик защищаемых Ресурсов Клиента для защиты на уровне L3/L4"]
["№","IP-адрес /32","DNS-имя(имена)","Управление DNS-записями","Сервис","Протоколы","Сетевые порты","Объем легитимного трафика, Мбит/с","Макс. кол-во одновременных TCP/UDP сессий","Вариант доставки трафика до Ресурса"]
[1,"-","-","-","-","-","-","-","-","-"]
[null,null,null,"-",null,"-","-","-","-","-"]
[null,null,null,"-",null,"-","-","-","-","-"]
[2,"-","-","-","-","-","-","-","-","-"]
[null,null,null,"-",null,"-","-","-","-","-"]
[null,null,null,"-",null,"-","-","-","-","-"]
[3,"-","-","-","-","-","-","-","-","-"]
[null,null,null,"-",null,"-","-","-","-","-"]
[null,null,null,"-",null,"-","-","-","-","-"]
["Пример заполнения"]
[1,"194.31.12.2","domain.com","Клиент/Customer","WEB-сервер","HTTP","TCP 80,81,88",100,100000,"NAT"]
[null,"194.31.12.3","example.ru","Клиент/Customer",null,"HTTPS","TCP 443",20,2000,"NAT"]
[2,"194.31.12.5","ns1.domain.com","Клиент/Customer","DNS-сервер (рекурсивный открытый/ рекурсивный закрытый/ авторитативный)","DNS","TCP 53, UDP 53",10,150,"NAT"]
[null,null,"ns1.example.ru"]
[3,"195.32.42.12","ns2.domain.com","Клиент/Customer","DNS-сервер (рекурсивный открытый/ рекурсивный закрытый/ авторитативный)","DNS","TCP 53, UDP 53",10,200,"NAT"]
[null,null,"ns2.example.ru"]
[4,"194.31.12.6","vpn.domain.com","Клиент/Customer","VPN шлюз","PPTP","GRE, TCP 1723",1000,1000,"NAT"]
[null,null,null,null,null,"L2TP","TCP 1701, UDP 1701"]
[null,null,null,null,null,"SSTP","TCP 443"]
[]
[]
["Таблица 3"]
["Список технических характеристик для защиты на уровне L7 (Web-сервер, API или Ресурc с SSL/ TLS/ DTLS)"]
["№","IP-адрес","Сервис","Список портов TLS","Особенности доставки трафика","Server Name Indication (SNI)","Минимальная допустимая версия TLS","Максимальное кол-во Cipher Suites","Максимальное кол-во TLS Extention"]
[1,"-","-","-","-","-","-","-","-"]
[2,"-","-","-","-","-","-","-","-"]
[3,"-","-","-","-","-","-","-","-"]
["…","-","-","-","-","-","-","-","-"]
["Пример заполнения"]
[1,"194.31.12.2","Web-сервер","UDP 443","QUIC","Используется","TLS 1.3",100,64]
[null,"194.31.12.3","Web-сервер","UDP 443","DTLS","Используется","TLS 1.3",100,64]
[2,"194.31.12.4","SSL VPN","TCP 443","-","Не используется","TLS 1.3",100,64]
[3,"194.31.12.5","Outlook Anyware (RPC over HTTPS)","TCP 443","-","Не используется","TLS 1.3",100,64]
[4,"194.31.12.6","Proxy Server","TCP 8443","-","Не используется","TLS 1.2",100,64]
[5,"194.31.12.7","REST API","TCP 443","-","Не используется","TLS 1.3",100,64]
[]
[]
["Таблица 4"]
["Список технических характеристик для защиты на уровне L7 (DNS)"]
["№","IP-адрес","Список портов DNS","Тип сервера DNS",null,"DNSSEC","Поддержка DoT/DoH/DoQ","Минимальная допустимая версия TLS","Максимальное кол-во Cipher Suites","Максимальное кол-во TLS Extention"]
[null,null,null,"Рекурсивный","Авторитативный"]
[1,"-","-","-","-","-","-","-","-","-"]
[2,"-","-","-","-","-","-","-","-","-"]
[3,"-","-","-","-","-","-","-","-","-"]
["…","-","-","-","-","-","-","-","-","-"]
["Пример заполнения"]
[1,"194.31.12.4","TCP/UPD 853","Открытый","Да","Да","DoT","TLS 1.2",100,64]
[2,"194.31.12.5","UDP 53","Закрытый","Нет","Нет","Нет","N/A","N/A","N/A"]
[3,"194.31.12.6","TCP 443","Нет","Да","Нет","DoH","TLS 1.3",100,64]
[]
[]
[]
["Комментарий"]

{"sheet":"Site Guardian #1","index":6,"n_rows":79,"n_cols":10,"rows_kept":79,"cut":false,"hidden":true,"merged":[[21,0,23,0],[21,1,23,1],[21,2,23,2],[21,3,23,3],[1,0,1,4],[3,0,3,1],[5,0,5,1],[6,0,6,4],[7,0,8,3],[9,0,10,3],[11,0,12,3],[13,0,14,3],[15,0,16,3],[18,0,18,1],[19,0,19,5],[24,0,26,0],[24,1,26,1],[24,2,26,2],[24,3,26,3],[27,0,29,0],[27,1,29,1],[27,2,29,2],[27,3,29,3],[31,0,31,5],[32,0,33,0],[32,3,33,3],[34,0,37,0],[34,1,37,1],[34,3,37,3],[49,0,49,8],[38,0,39,0],[38,1,39,1],[38,3,39,3],[38,4,39,4],[38,5,39,5],[40,0,41,0],[40,1,41,1],[40,3,41,3],[40,4,41,4],[40,5,41,5],[42,0,44,0],[42,1,44,1],[42,2,44,2],[42,3,44,3],[48,0,48,1],[71,0,71,9],[78,0,78,5],[79,0,91,5],[55,0,55,7],[63,0,63,1],[64,0,64,9],[65,0,66,0],[65,1,66,1],[65,2,66,2],[65,3,65,4],[65,5,66,5],[65,6,66,6],[65,7,66,7],[65,8,66,8],[65,9,66,9]]}
[]
["Технический Опросник: Site Guardian"]
[]
["Вариант инсталляции",null,"Выбрать"]
[]
["Таблица 1"]
["Заполняется для подключения Site Guardian"]
["Защищаемые префиксы, IP-адреса, IP-сети для каждого канала каждого интернет-провайдера, которые требуется защищать\n\n(Содержит перечень всех защищаемых IP-адресов (диапазонов) Клиента. Может состоять из нескольких диапазонов IP. Таже обязательно указать PtP адреса, емкость канала и какие порты будут задействованы на Оборудовании)\n\n",null,null,null,"Пример 1:\nКанал №1 (Physical In-Path)\nXXX.XXX.XXX/24, YYY.YYY.YYY/29\nPtP: ZZZ.ZZZ.ZZZ/30\nЕмкость канала: 100 Mbit/s\nExternal порт: Ethernet 0\nInternal порт: Ethernet 1\n\nПример 2:\nКанал №2 (Logical In-Path)\nXXX.XXX.XXX/24, YYY.YYY.YYY/29\nPtP: ZZZ.ZZZ.ZZZ/30\nЕмкость канала: 300 Mbit/s\nExnternal порт: Ethernet 0/Port-channel 0 (VLAN #1) Internal порт: Ethernet 0/Port-channel 0, (VLAN #2)"]
[null,null,null,null,"Заполнение обязательно"]
["Настройки порта управления Оборудованием для Клиента (mgmt 2)\n\n(IP адрес, маска сети)\n(Кроме: 192.168.208.128/25, 192.168.110.0/25, 192.168.149.0/25, 194.84.98.0/26, 172.18.1.0/24, 172.23.108.0/24)",null,null,null,"Пример:\nXXX.XXX.XXX/24\n"]
[null,null,null,null,"Заполнение обязательно"]
["Префиксы, IP-адреса, IP-сети.управления со стороны сети Клиента\n\n(Кроме: 192.168.208.128/25, 192.168.110.0/25, 192.168.149.0/25, 194.84.98.0/26, 172.18.1.0/24, 172.23.108.0/24)"]
[null,null,null,null,"Заполнение обязательно"]
["Адреса email для уведомлений от Оборудования\n\n(При отметке «Да» указать адрес для уведомлений)"]
[]
["Получение событий по Syslog\n\n(При отметке «Да» указать IP адрес Syslog сервера)"]
[]
[]
["Таблица 2"]
["Список технических характеристик защищаемых Ресурсов Клиента для защиты на уровне L3/L4"]
["№","IP-адрес/Пул IP-адресов","DNS-имя(имена)","Сервис","Протоколы","Сетевые порты"]
[1,"-","-","-","-","-"]
[null,null,null,null,"-","-"]
[null,null,null,null,"-","-"]
[2,"-","-","-","-","-"]
[null,null,null,null,"-","-"]
[null,null,null,null,"-","-"]
[3,"-","-","-","-","-"]
[null,null,null,null,"-","-"]
[null,null,null,null,"-","-"]
["…","-","-","-","-","-"]
["Пример заполнения"]
[1,"194.31.12.2","domain.com","WEB-сервер","HTTP","TCP 80,81,88"]
[null,"194.31.12.3","example.ru",null,"HTTPS","TCP 443"]
[2,"194.31.12.4","mail.domain.com","Почтовый сервер","SMTP(S)","TCP 25,465,587,2525"]
[null,null,"mail.example.ru",null,"POP3(S)","TCP 110,995"]
[null,null,null,null,"IMAP(S)","TCP 143,993"]
[null,null,null,null,"HTTPS","TCP 443"]
[3,"194.31.12.5","ns1.domain.com","DNS-сервер (рекурсивный открытый/ рекурсивный закрытый/ авторитативный)","DNS","TCP 53, UDP 53"]
[null,null,"ns1.example.ru"]
[4,"195.32.42.12","ns2.domain.com","DNS-сервер (рекурсивный открытый/ рекурсивный закрытый/ авторитативный)","DNS","TCP 53, UDP 53"]
[null,null,"ns2.example.ru"]
[5,"194.31.12.6","vpn.domain.com","VPN шлюз","PPTP","GRE, TCP 1723"]
[null,null,null,null,"L2TP","TCP 1701, UDP 1701"]
[null,null,null,null,"SSTP","TCP 443"]
[]
[]
[]
["Таблица 3"]
["Список технических характеристик для защиты на уровне L7 (Web-сервер, API или Ресурc с SSL/ TLS/ DTLS)"]
["№","IP-адрес/ Пул IP-адресов","Сервис","Список портов TLS","Особенности доставки трафика","Server Name Indication (SNI)","Минимальная допустимая версия TLS","Максимальное кол-во Cipher Suites","Максимальное кол-во TLS Extention"]
[1,"-","-","-","-","-","-","-","-"]
[2,"-","-","-","-","-","-","-","-"]
[3,"-","-","-","-","-","-","-","-"]
["…","-","-","-","-","-","-","-","-"]
["Пример заполнения"]
[1,"194.31.12.2","Web-сервер","UDP 443","QUIC","Используется","TLS 1.3",100,64]
[null,"194.31.12.3","Web-сервер","UDP 443","DTLS","Используется","TLS 1.3",100,64]
[2,"194.31.12.4","SSL VPN","TCP 443","-","Не используется","TLS 1.3",100,64]
[3,"194.31.12.5","Outlook Anyware (RPC over HTTPS)","TCP 443","-","Не используется","TLS 1.3",100,64]
[4,"194.31.12.6","Proxy Server","TCP 8443","-","Не используется","TLS 1.2",100,64]
[5,"194.31.12.7","REST API","TCP 443","-","Не используется","TLS 1.3",100,64]
[]
["Таблица 4"]
["Список технических характеристик для защиты на уровне L7 (DNS)"]
["№","IP-адрес/ Пул IP-адресов","Список портов DNS","Тип сервера DNS",null,"DNSSEC","Поддержка DoT/DoH/DoQ","Минимальная допустимая версия TLS","Максимальное кол-во Cipher Suites","Максимальное кол-во TLS Extention"]
[null,null,null,"Рекурсивный","Авторитативный"]
[1,"-","-","-","-","-","-","-","-","-"]
[2,"-","-","-","-","-","-","-","-","-"]
[3,"-","-","-","-","-","-","-","-","-"]
["…","-","-","-","-","-","-","-","-","-"]
["Пример заполнения"]
[1,"194.31.12.4","TCP/UPD 853","Открытый","Да","Да","DoT","TLS 1.2",100,64]
[2,"194.31.12.5","UDP 53","Закрытый","Нет","Нет","Нет","N/A","N/A","N/A"]
[3,"194.31.12.6","TCP 443","Нет","Да","Нет","DoH","TLS 1.3",100,64]
[]
[]
[]
["Комментарий"]

{"sheet":"Site Guardian #2","index":7,"n_rows":79,"n_cols":10,"rows_kept":79,"cut":false,"hidden":true,"merged":[[21,0,23,0],[21,1,23,1],[21,2,23,2],[21,3,23,3],[1,0,1,4],[3,0,3,1],[5,0,5,1],[6,0,6,4],[7,0,8,3],[9,0,10,3],[11,0,12,3],[13,0,14,3],[15,0,16,3],[18,0,18,1],[19,0,19,5],[24,0,26,0],[24,1,26,1],[24,2,26,2],[24,3,26,3],[27,0,29,0],[27,1,29,1],[27,2,29,2],[27,3,29,3],[31,0,31,5],[32,0,33,0],[32,3,33,3],[34,0,37,0],[34,1,37,1],[34,3,37,3],[49,0,49,8],[38,0,39,0],[38,1,39,1],[38,3,39,3],[38,4,39,4],[38,5,39,5],[40,0,41,0],[40,1,41,1],[40,3,41,3],[40,4,41,4],[40,5,41,5],[42,0,44,0],[42,1,44,1],[42,2,44,2],[42,3,44,3],[48,0,48,1],[71,0,71,9],[78,0,78,5],[79,0,91,5],[55,0,55,7],[63,0,63,1],[64,0,64,9],[65,0,66,0],[65,1,66,1],[65,2,66,2],[65,3,65,4],[65,5,66,5],[65,6,66,6],[65,7,66,7],[65,8,66,8],[65,9,66,9]]}
[]
["Технический Опросник: Site Guardian"]
[]
["Вариант инсталляции",null,"Выбрать"]
[]
["Таблица 1"]
["Заполняется для подключения Site Guardian"]
["Защищаемые префиксы, IP-адреса, IP-сети для каждого канала каждого интернет-провайдера, которые требуется защищать\n\n(Содержит перечень всех защищаемых IP-адресов (диапазонов) Клиента. Может состоять из нескольких диапазонов IP. Таже обязательно указать PtP адреса, емкость канала и какие порты будут задействованы на Оборудовании)\n\n",null,null,null,"Пример 1:\nКанал №1 (Physical In-Path)\nXXX.XXX.XXX/24, YYY.YYY.YYY/29\nPtP: ZZZ.ZZZ.ZZZ/30\nЕмкость канала: 100 Mbit/s\nExternal порт: Ethernet 0\nInternal порт: Ethernet 1\n\nПример 2:\nКанал №2 (Logical In-Path)\nXXX.XXX.XXX/24, YYY.YYY.YYY/29\nPtP: ZZZ.ZZZ.ZZZ/30\nЕмкость канала: 300 Mbit/s\nExnternal порт: Ethernet 0/Port-channel 0 (VLAN #1) Internal порт: Ethernet 0/Port-channel 0, (VLAN #2)"]
[null,null,null,null,"Заполнение обязательно"]
["Настройки порта управления Оборудованием для Клиента (mgmt 2)\n\n(IP адрес, маска сети)\n(Кроме: 192.168.208.128/25, 192.168.110.0/25, 192.168.149.0/25, 194.84.98.0/26, 172.18.1.0/24, 172.23.108.0/24)",null,null,null,"Пример:\nXXX.XXX.XXX/24\n"]
[null,null,null,null,"Заполнение обязательно"]
["Префиксы, IP-адреса, IP-сети.управления со стороны сети Клиента\n\n(Кроме: 192.168.208.128/25, 192.168.110.0/25, 192.168.149.0/25, 194.84.98.0/26, 172.18.1.0/24, 172.23.108.0/24)"]
[null,null,null,null,"Заполнение обязательно"]
["Адреса email для уведомлений от Оборудования\n\n(При отметке «Да» указать адрес для уведомлений)"]
[]
["Получение событий по Syslog\n\n(При отметке «Да» указать IP адрес Syslog сервера)"]
[]
[]
["Таблица 2"]
["Список технических характеристик защищаемых Ресурсов Клиента для защиты на уровне L3/L4"]
["№","IP-адрес/Пул IP-адресов","DNS-имя(имена)","Сервис","Протоколы","Сетевые порты"]
[1,"-","-","-","-","-"]
[null,null,null,null,"-","-"]
[null,null,null,null,"-","-"]
[2,"-","-","-","-","-"]
[null,null,null,null,"-","-"]
[null,null,null,null,"-","-"]
[3,"-","-","-","-","-"]
[null,null,null,null,"-","-"]
[null,null,null,null,"-","-"]
["…","-","-","-","-","-"]
["Пример заполнения"]
[1,"194.31.12.2","domain.com","WEB-сервер","HTTP","TCP 80,81,88"]
[null,"194.31.12.3","example.ru",null,"HTTPS","TCP 443"]
[2,"194.31.12.4","mail.domain.com","Почтовый сервер","SMTP(S)","TCP 25,465,587,2525"]
[null,null,"mail.example.ru",null,"POP3(S)","TCP 110,995"]
[null,null,null,null,"IMAP(S)","TCP 143,993"]
[null,null,null,null,"HTTPS","TCP 443"]
[3,"194.31.12.5","ns1.domain.com","DNS-сервер (рекурсивный открытый/ рекурсивный закрытый/ авторитативный)","DNS","TCP 53, UDP 53"]
[null,null,"ns1.example.ru"]
[4,"195.32.42.12","ns2.domain.com","DNS-сервер (рекурсивный открытый/ рекурсивный закрытый/ авторитативный)","DNS","TCP 53, UDP 53"]
[null,null,"ns2.example.ru"]
[5,"194.31.12.6","vpn.domain.com","VPN шлюз","PPTP","GRE, TCP 1723"]
[null,null,null,null,"L2TP","TCP 1701, UDP 1701"]
[null,null,null,null,"SSTP","TCP 443"]
[]
[]
[]
["Таблица 3"]
["Список технических характеристик для защиты на уровне L7 (Web-сервер, API или Ресурc с SSL/ TLS/ DTLS)"]
["№","IP-адрес/ Пул IP-адресов","Сервис","Список портов TLS","Особенности доставки трафика","Server Name Indication (SNI)","Минимальная допустимая версия TLS","Максимальное кол-во Cipher Suites","Максимальное кол-во TLS Extention"]
[1,"-","-","-","-","-","-","-","-"]
[2,"-","-","-","-","-","-","-","-"]
[3,"-","-","-","-","-","-","-","-"]
["…","-","-","-","-","-","-","-","-"]
["Пример заполнения"]
[1,"194.31.12.2","Web-сервер","UDP 443","QUIC","Используется","TLS 1.3",100,64]
[null,"194.31.12.3","Web-сервер","UDP 443","DTLS","Используется","TLS 1.3",100,64]
[2,"194.31.12.4","SSL VPN","TCP 443","-","Не используется","TLS 1.3",100,64]
[3,"194.31.12.5","Outlook Anyware (RPC over HTTPS)","TCP 443","-","Не используется","TLS 1.3",100,64]
[4,"194.31.12.6","Proxy Server","TCP 8443","-","Не используется","TLS 1.2",100,64]
[5,"194.31.12.7","REST API","TCP 443","-","Не используется","TLS 1.3",100,64]
[]
["Таблица 4"]
["Список технических характеристик для защиты на уровне L7 (DNS)"]
["№","IP-адрес/ Пул IP-адресов","Список портов DNS","Тип сервера DNS",null,"DNSSEC","Поддержка DoT/DoH/DoQ","Минимальная допустимая версия TLS","Максимальное кол-во Cipher Suites","Максимальное кол-во TLS Extention"]
[null,null,null,"Рекурсивный","Авторитативный"]
[1,"-","-","-","-","-","-","-","-","-"]
[2,"-","-","-","-","-","-","-","-","-"]
[3,"-","-","-","-","-","-","-","-","-"]
["…","-","-","-","-","-","-","-","-","-"]
["Пример заполнения"]
[1,"194.31.12.4","TCP/UPD 853","Открытый","Да","Да","DoT","TLS 1.2",100,64]
[2,"194.31.12.5","UDP 53","Закрытый","Нет","Нет","Нет","N/A","N/A","N/A"]
[3,"194.31.12.6","TCP 443","Нет","Да","Нет","DoH","TLS 1.3",100,64]
[]
[]
[]
["Комментарий"]

{"sheet":"Site Guardian #3","index":8,"n_rows":79,"n_cols":10,"rows_kept":79,"cut":false,"hidden":true,"merged":[[21,0,23,0],[21,1,23,1],[21,2,23,2],[21,3,23,3],[1,0,1,4],[3,0,3,1],[5,0,5,1],[6,0,6,4],[7,0,8,3],[9,0,10,3],[11,0,12,3],[13,0,14,3],[15,0,16,3],[18,0,18,1],[19,0,19,5],[24,0,26,0],[24,1,26,1],[24,2,26,2],[24,3,26,3],[27,0,29,0],[27,1,29,1],[27,2,29,2],[27,3,29,3],[31,0,31,5],[32,0,33,0],[32,3,33,3],[34,0,37,0],[34,1,37,1],[34,3,37,3],[49,0,49,8],[38,0,39,0],[38,1,39,1],[38,3,39,3],[38,4,39,4],[38,5,39,5],[40,0,41,0],[40,1,41,1],[40,3,41,3],[40,4,41,4],[40,5,41,5],[42,0,44,0],[42,1,44,1],[42,2,44,2],[42,3,44,3],[48,0,48,1],[71,0,71,9],[78,0,78,5],[79,0,91,5],[55,0,55,7],[63,0,63,1],[64,0,64,9],[65,0,66,0],[65,1,66,1],[65,2,66,2],[65,3,65,4],[65,5,66,5],[65,6,66,6],[65,7,66,7],[65,8,66,8],[65,9,66,9]]}
[]
["Технический Опросник: Site Guardian"]
[]
["Вариант инсталляции",null,"Выбрать"]
[]
["Таблица 1"]
["Заполняется для подключения Site Guardian"]
["Защищаемые префиксы, IP-адреса, IP-сети для каждого канала каждого интернет-провайдера, которые требуется защищать\n\n(Содержит перечень всех защищаемых IP-адресов (диапазонов) Клиента. Может состоять из нескольких диапазонов IP. Таже обязательно указать PtP адреса, емкость канала и какие порты будут задействованы на Оборудовании)\n\n",null,null,null,"Пример 1:\nКанал №1 (Physical In-Path)\nXXX.XXX.XXX/24, YYY.YYY.YYY/29\nPtP: ZZZ.ZZZ.ZZZ/30\nЕмкость канала: 100 Mbit/s\nExternal порт: Ethernet 0\nInternal порт: Ethernet 1\n\nПример 2:\nКанал №2 (Logical In-Path)\nXXX.XXX.XXX/24, YYY.YYY.YYY/29\nPtP: ZZZ.ZZZ.ZZZ/30\nЕмкость канала: 300 Mbit/s\nExnternal порт: Ethernet 0/Port-channel 0 (VLAN #1) Internal порт: Ethernet 0/Port-channel 0, (VLAN #2)"]
[null,null,null,null,"Заполнение обязательно"]
["Настройки порта управления Оборудованием для Клиента (mgmt 2)\n\n(IP адрес, маска сети)\n(Кроме: 192.168.208.128/25, 192.168.110.0/25, 192.168.149.0/25, 194.84.98.0/26, 172.18.1.0/24, 172.23.108.0/24)",null,null,null,"Пример:\nXXX.XXX.XXX/24\n"]
[null,null,null,null,"Заполнение обязательно"]
["Префиксы, IP-адреса, IP-сети.управления со стороны сети Клиента\n\n(Кроме: 192.168.208.128/25, 192.168.110.0/25, 192.168.149.0/25, 194.84.98.0/26, 172.18.1.0/24, 172.23.108.0/24)"]
[null,null,null,null,"Заполнение обязательно"]
["Адреса email для уведомлений от Оборудования\n\n(При отметке «Да» указать адрес для уведомлений)"]
[]
["Получение событий по Syslog\n\n(При отметке «Да» указать IP адрес Syslog сервера)"]
[]
[]
["Таблица 2"]
["Список технических характеристик защищаемых Ресурсов Клиента для защиты на уровне L3/L4"]
["№","IP-адрес/Пул IP-адресов","DNS-имя(имена)","Сервис","Протоколы","Сетевые порты"]
[1,"-","-","-","-","-"]
[null,null,null,null,"-","-"]
[null,null,null,null,"-","-"]
[2,"-","-","-","-","-"]
[null,null,null,null,"-","-"]
[null,null,null,null,"-","-"]
[3,"-","-","-","-","-"]
[null,null,null,null,"-","-"]
[null,null,null,null,"-","-"]
["…","-","-","-","-","-"]
["Пример заполнения"]
[1,"194.31.12.2","domain.com","WEB-сервер","HTTP","TCP 80,81,88"]
[null,"194.31.12.3","example.ru",null,"HTTPS","TCP 443"]
[2,"194.31.12.4","mail.domain.com","Почтовый сервер","SMTP(S)","TCP 25,465,587,2525"]
[null,null,"mail.example.ru",null,"POP3(S)","TCP 110,995"]
[null,null,null,null,"IMAP(S)","TCP 143,993"]
[null,null,null,null,"HTTPS","TCP 443"]
[3,"194.31.12.5","ns1.domain.com","DNS-сервер (рекурсивный открытый/ рекурсивный закрытый/ авторитативный)","DNS","TCP 53, UDP 53"]
[null,null,"ns1.example.ru"]
[4,"195.32.42.12","ns2.domain.com","DNS-сервер (рекурсивный открытый/ рекурсивный закрытый/ авторитативный)","DNS","TCP 53, UDP 53"]
[null,null,"ns2.example.ru"]
[5,"194.31.12.6","vpn.domain.com","VPN шлюз","PPTP","GRE, TCP 1723"]
[null,null,null,null,"L2TP","TCP 1701, UDP 1701"]
[null,null,null,null,"SSTP","TCP 443"]
[]
[]
[]
["Таблица 3"]
["Список технических характеристик для защиты на уровне L7 (Web-сервер, API или Ресурc с SSL/ TLS/ DTLS)"]
["№","IP-адрес/ Пул IP-адресов","Сервис","Список портов TLS","Особенности доставки трафика","Server Name Indication (SNI)","Минимальная допустимая версия TLS","Максимальное кол-во Cipher Suites","Максимальное кол-во TLS Extention"]
[1,"-","-","-","-","-","-","-","-"]
[2,"-","-","-","-","-","-","-","-"]
[3,"-","-","-","-","-","-","-","-"]
["…","-","-","-","-","-","-","-","-"]
["Пример заполнения"]
[1,"194.31.12.2","Web-сервер","UDP 443","QUIC","Используется","TLS 1.3",100,64]
[null,"194.31.12.3","Web-сервер","UDP 443","DTLS","Используется","TLS 1.3",100,64]
[2,"194.31.12.4","SSL VPN","TCP 443","-","Не используется","TLS 1.3",100,64]
[3,"194.31.12.5","Outlook Anyware (RPC over HTTPS)","TCP 443","-","Не используется","TLS 1.3",100,64]
[4,"194.31.12.6","Proxy Server","TCP 8443","-","Не используется","TLS 1.2",100,64]
[5,"194.31.12.7","REST API","TCP 443","-","Не используется","TLS 1.3",100,64]
[]
["Таблица 4"]
["Список технических характеристик для защиты на уровне L7 (DNS)"]
["№","IP-адрес/ Пул IP-адресов","Список портов DNS","Тип сервера DNS",null,"DNSSEC","Поддержка DoT/DoH/DoQ","Минимальная допустимая версия TLS","Максимальное кол-во Cipher Suites","Максимальное кол-во TLS Extention"]
[null,null,null,"Рекурсивный","Авторитативный"]
[1,"-","-","-","-","-","-","-","-","-"]
[2,"-","-","-","-","-","-","-","-","-"]
[3,"-","-","-","-","-","-","-","-","-"]
["…","-","-","-","-","-","-","-","-","-"]
["Пример заполнения"]
[1,"194.31.12.4","TCP/UPD 853","Открытый","Да","Да","DoT","TLS 1.2",100,64]
[2,"194.31.12.5","UDP 53","Закрытый","Нет","Нет","Нет","N/A","N/A","N/A"]
[3,"194.31.12.6","TCP 443","Нет","Да","Нет","DoH","TLS 1.3",100,64]
[]
[]
[]
["Комментарий"]

{"sheet":"Site Guardian #4","index":9,"n_rows":79,"n_cols":10,"rows_kept":79,"cut":false,"hidden":true,"merged":[[21,0,23,0],[21,1,23,1],[21,2,23,2],[21,3,23,3],[1,0,1,4],[3,0,3,1],[5,0,5,1],[6,0,6,4],[7,0,8,3],[9,0,10,3],[11,0,12,3],[13,0,14,3],[15,0,16,3],[18,0,18,1],[19,0,19,5],[24,0,26,0],[24,1,26,1],[24,2,26,2],[24,3,26,3],[27,0,29,0],[27,1,29,1],[27,2,29,2],[27,3,29,3],[31,0,31,5],[32,0,33,0],[32,3,33,3],[34,0,37,0],[34,1,37,1],[34,3,37,3],[49,0,49,8],[38,0,39,0],[38,1,39,1],[38,3,39,3],[38,4,39,4],[38,5,39,5],[40,0,41,0],[40,1,41,1],[40,3,41,3],[40,4,41,4],[40,5,41,5],[42,0,44,0],[42,1,44,1],[42,2,44,2],[42,3,44,3],[48,0,48,1],[71,0,71,9],[78,0,78,5],[79,0,91,5],[55,0,55,7],[63,0,63,1],[64,0,64,9],[65,0,66,0],[65,1,66,1],[65,2,66,2],[65,3,65,4],[65,5,66,5],[65,6,66,6],[65,7,66,7],[65,8,66,8],[65,9,66,9]]}
[]
["Технический Опросник: Site Guardian"]
[]
["Вариант инсталляции",null,"Выбрать"]
[]
["Таблица 1"]
["Заполняется для подключения Site Guardian"]
["Защищаемые префиксы, IP-адреса, IP-сети для каждого канала каждого интернет-провайдера, которые требуется защищать\n\n(Содержит перечень всех защищаемых IP-адресов (диапазонов) Клиента. Может состоять из нескольких диапазонов IP. Таже обязательно указать PtP адреса, емкость канала и какие порты будут задействованы на Оборудовании)\n\n",null,null,null,"Пример 1:\nКанал №1 (Physical In-Path)\nXXX.XXX.XXX/24, YYY.YYY.YYY/29\nPtP: ZZZ.ZZZ.ZZZ/30\nЕмкость канала: 100 Mbit/s\nExternal порт: Ethernet 0\nInternal порт: Ethernet 1\n\nПример 2:\nКанал №2 (Logical In-Path)\nXXX.XXX.XXX/24, YYY.YYY.YYY/29\nPtP: ZZZ.ZZZ.ZZZ/30\nЕмкость канала: 300 Mbit/s\nExnternal порт: Ethernet 0/Port-channel 0 (VLAN #1) Internal порт: Ethernet 0/Port-channel 0, (VLAN #2)"]
[null,null,null,null,"Заполнение обязательно"]
["Настройки порта управления Оборудованием для Клиента (mgmt 2)\n\n(IP адрес, маска сети)\n(Кроме: 192.168.208.128/25, 192.168.110.0/25, 192.168.149.0/25, 194.84.98.0/26, 172.18.1.0/24, 172.23.108.0/24)",null,null,null,"Пример:\nXXX.XXX.XXX/24\n"]
[null,null,null,null,"Заполнение обязательно"]
["Префиксы, IP-адреса, IP-сети.управления со стороны сети Клиента\n\n(Кроме: 192.168.208.128/25, 192.168.110.0/25, 192.168.149.0/25, 194.84.98.0/26, 172.18.1.0/24, 172.23.108.0/24)"]
[null,null,null,null,"Заполнение обязательно"]
["Адреса email для уведомлений от Оборудования\n\n(При отметке «Да» указать адрес для уведомлений)"]
[]
["Получение событий по Syslog\n\n(При отметке «Да» указать IP адрес Syslog сервера)"]
[]
[]
["Таблица 2"]
["Список технических характеристик защищаемых Ресурсов Клиента для защиты на уровне L3/L4"]
["№","IP-адрес/Пул IP-адресов","DNS-имя(имена)","Сервис","Протоколы","Сетевые порты"]
[1,"-","-","-","-","-"]
[null,null,null,null,"-","-"]
[null,null,null,null,"-","-"]
[2,"-","-","-","-","-"]
[null,null,null,null,"-","-"]
[null,null,null,null,"-","-"]
[3,"-","-","-","-","-"]
[null,null,null,null,"-","-"]
[null,null,null,null,"-","-"]
["…","-","-","-","-","-"]
["Пример заполнения"]
[1,"194.31.12.2","domain.com","WEB-сервер","HTTP","TCP 80,81,88"]
[null,"194.31.12.3","example.ru",null,"HTTPS","TCP 443"]
[2,"194.31.12.4","mail.domain.com","Почтовый сервер","SMTP(S)","TCP 25,465,587,2525"]
[null,null,"mail.example.ru",null,"POP3(S)","TCP 110,995"]
[null,null,null,null,"IMAP(S)","TCP 143,993"]
[null,null,null,null,"HTTPS","TCP 443"]
[3,"194.31.12.5","ns1.domain.com","DNS-сервер (рекурсивный открытый/ рекурсивный закрытый/ авторитативный)","DNS","TCP 53, UDP 53"]
[null,null,"ns1.example.ru"]
[4,"195.32.42.12","ns2.domain.com","DNS-сервер (рекурсивный открытый/ рекурсивный закрытый/ авторитативный)","DNS","TCP 53, UDP 53"]
[null,null,"ns2.example.ru"]
[5,"194.31.12.6","vpn.domain.com","VPN шлюз","PPTP","GRE, TCP 1723"]
[null,null,null,null,"L2TP","TCP 1701, UDP 1701"]
[null,null,null,null,"SSTP","TCP 443"]
[]
[]
[]
["Таблица 3"]
["Список технических характеристик для защиты на уровне L7 (Web-сервер, API или Ресурc с SSL/ TLS/ DTLS)"]
["№","IP-адрес/ Пул IP-адресов","Сервис","Список портов TLS","Особенности доставки трафика","Server Name Indication (SNI)","Минимальная допустимая версия TLS","Максимальное кол-во Cipher Suites","Максимальное кол-во TLS Extention"]
[1,"-","-","-","-","-","-","-","-"]
[2,"-","-","-","-","-","-","-","-"]
[3,"-","-","-","-","-","-","-","-"]
["…","-","-","-","-","-","-","-","-"]
["Пример заполнения"]
[1,"194.31.12.2","Web-сервер","UDP 443","QUIC","Используется","TLS 1.3",100,64]
[null,"194.31.12.3","Web-сервер","UDP 443","DTLS","Используется","TLS 1.3",100,64]
[2,"194.31.12.4","SSL VPN","TCP 443","-","Не используется","TLS 1.3",100,64]
[3,"194.31.12.5","Outlook Anyware (RPC over HTTPS)","TCP 443","-","Не используется","TLS 1.3",100,64]
[4,"194.31.12.6","Proxy Server","TCP 8443","-","Не используется","TLS 1.2",100,64]
[5,"194.31.12.7","REST API","TCP 443","-","Не используется","TLS 1.3",100,64]
[]
["Таблица 4"]
["Список технических характеристик для защиты на уровне L7 (DNS)"]
["№","IP-адрес/ Пул IP-адресов","Список портов DNS","Тип сервера DNS",null,"DNSSEC","Поддержка DoT/DoH/DoQ","Минимальная допустимая версия TLS","Максимальное кол-во Cipher Suites","Максимальное кол-во TLS Extention"]
[null,null,null,"Рекурсивный","Авторитативный"]
[1,"-","-","-","-","-","-","-","-","-"]
[2,"-","-","-","-","-","-","-","-","-"]
[3,"-","-","-","-","-","-","-","-","-"]
["…","-","-","-","-","-","-","-","-","-"]
["Пример заполнения"]
[1,"194.31.12.4","TCP/UPD 853","Открытый","Да","Да","DoT","TLS 1.2",100,64]
[2,"194.31.12.5","UDP 53","Закрытый","Нет","Нет","Нет","N/A","N/A","N/A"]
[3,"194.31.12.6","TCP 443","Нет","Да","Нет","DoH","TLS 1.3",100,64]
[]
[]
[]
["Комментарий"]

{"sheet":"Технический опросник","index":10,"n_rows":69,"n_cols":8,"rows_kept":69,"cut":false,"hidden":true,"merged":[[1,0,1,7],[2,0,2,7],[3,0,3,7],[4,0,5,0],[4,1,5,1],[4,2,5,2],[4,3,5,3],[4,4,5,4],[4,5,4,7],[31,0,32,3],[12,0,14,7],[15,0,15,2],[16,0,16,1],[17,0,17,1],[19,0,19,1],[20,0,20,4],[21,0,22,3],[23,0,24,3],[25,0,26,3],[27,0,28,3],[29,0,30,3],[33,0,34,3],[38,0,38,1],[39,0,39,5],[41,0,43,0],[41,1,43,1],[41,2,43,2],[41,3,43,3],[44,0,46,0],[44,1,46,1],[44,2,46,2],[44,3,46,3],[47,0,49,0],[47,1,49,1],[47,2,49,2],[47,3,49,3],[51,0,51,5],[52,0,53,0],[52,3,53,3],[54,0,57,0],[54,1,57,1],[54,3,57,3],[60,0,61,0],[60,1,61,1],[60,3,61,3],[60,4,61,4],[60,5,61,5],[58,0,59,0],[58,1,59,1],[58,3,59,3],[58,4,59,4],[58,5,59,5],[68,0,68,5],[69,0,81,5],[62,0,64,0],[62,1,64,1],[62,2,64,2],[62,3,64,3]]}
[]
["Технический Опросник / Technical Questionnaire"]
["Дата / Date «___» ______ 20___ г."]
["(описание сетевых параметров Ресурсов Клиента, подлежащих защите от DoS/DDoS-атак)\n(description of network parameters of the Customer's Resources to be protected against DoS/DDoS Attacks)"]
["№","Ф.И.О. / Full Name","Должность / Title","Телефон / Phone","e-mail","Роли / Roles"]
[null,null,null,null,null,"Доступ в ЛК Комплекса DDoS защиты /\nAccess to the personal account of the DDoS Protection Hardware Suite","Обращение в ТП и в SOC круглосуточно /\nContacting the TS and SOC: around the clock","Горячий контакт для круглосуточной связи с Клиентом /\nHot contact for 24-hour communication with the Customer"]
[1,null,null,null,null,"Выбрать / Choose","Выбрать / Choose","Выбрать / Choose"]
[2,null,null,null,null,"Выбрать / Choose","Выбрать / Choose","Выбрать / Choose"]
[3,null,null,null,null,"Выбрать / Choose","Выбрать / Choose","Выбрать / Choose"]
[4,null,null,null,null,"Выбрать / Choose","Выбрать / Choose","Выбрать / Choose"]
[5,null,null,null,null,"Выбрать / Choose","Выбрать / Choose","Выбрать / Choose"]
[]
["Данные Представителей Клиента будут использоваться в качестве создания учетных записей для доступа к WEB-интерфейсу Комплекса DDoS-защиты\n\nCustomer Representative data will be used for creating accounts for access to the web interface of the DDoS Protection Hardware Suite"]
[]
[]
["Security Operation Center Orange (SOC Orange)"]
["e-mail ",null,"rus.soc@orange.com"]
["Телефон (круглосуточно) / Phone (24 hours a day)",null,"+7(495)221-32-80"]
[]
["Таблица 1 / Table 1"]
["Заполняется для подключения Internet Umbrella / To be filled in for a standard Internet Umbrella connection"]
["Защищаемый префикс на 1 защищаемый порт (не более /21). Защищаемые IP-адреса, IP-сети\n\n(Основной, общий managed object клиента. Содержит перечень всех защищаемых IP-адресов (диапазонов) клиента. Может состоять из нескольких диапазонов IP-адресов. Суммарное кол-во IP-адресов не должно превышать /21 (8 сетей по 256 адресов).\n\nOne protected prefix per port (no more than /21). Protected IP addresses, IP networks\n\n(General managed object of the Customer. Contains the list of all protected IP addresses (range) of the Customer. May include multiple IP address ranges. The total number of IP addresses must not exceed /21 (8 networks including 256 IP addresses each)."]
[null,null,null,null,"Заполнение обязательно\nCompletion is mandatory"]
["Описание защищаемых Ресурсов  с обязательным перечислением работающих сетевых сервисов и их портов\n\n(Для сбора более детальной статистики по ключевым сервисам клиента, требующим защиты. Также позволит инженерам более тонко и эффективно настроить детектирование атак и применять противомеры. При внесении в список DNS-сервера, необходимо указать его тип: рекурсивный открытый/ рекурсивный закрытый/ авторитативный)\n\nDescription of protected Resources with a mandatory list of operating network services and their ports\n\n(Required for the collection of more detailed statistics on key Customer services that require protection. Also allows engineers to configure the attack detection more accurately and efficiently and apply countermeasures. When adding a DNS server to the list, you must specify its type: recursive open/ recursive closed/ authoritative)\n\nПри отметке варианта «Да» обязательно заполнение Таблицы 2 в конце опросника / If you select \"Yes\", it is necessary to fill in Table 2 at the end of the Questionnaire."]
[null,null,null,null,"Заполнение обязательно\nCompletion is mandatory"]
["Префиксы (IP-адреса), с которых разрешён доступ клиенту к WEB-интерфейсу управления\n\n(С указанных IP-адресов (диапазонов адресов) Клиенту будет открыт доступ к WEB-интерфейсу Комплекса DDoS-защиты.)\n\nPrefixes (IP addresses) from which the Customer access to the management web interface shall be permitted\n\n(Using the specified IP addresses (address ranges), the Customer will have access to the web interface of the DDoS Protection Hardware Suite.)"]
[null,null,null,null,"Заполнение обязательно\nCompletion is mandatory"]
["Электронный адрес (e-mail) для уведомлений от системы и предоставления ежемесячных отчетов\n\n(На указанные адреса будут приходить автоматические уведомления от Комплекса DDoS-защиты, а также ежемесячные отчеты. Может быть указано несколько e-mail адресов. Желательно создавать лист рассылки, который будет прописан в системе.)\n\nE-mail for notifications from the system and provision of monthly reports\n\n(Automatic notifications from the DDoS Protection Hardware Suite, as well as monthly reports, will be sent to the specified addresses. More than one e-mail address can be specified. It is advisable to create an electronic mailing list which will be registered in the system.)"]
[null,null,null,null,"Заполнение обязательно\nCompletion is mandatory"]
["Подключение опции Cloud Signaling (если применимо)\n\n(При отметке «Да», нужно указать IP-адрес Клиентского оборудования)\n\nEnabling the Cloud Signaling option (if applicable)\n\n(If you select \"Yes\", you need to specify the IP address of the Customer Equipment)."]
[]
["Использование автоматически загружаемого Blacklist\n\n(При отметке «Да», нужно указать адрес http/https и логин/пароль, если применимо)\n\nUsing an automatically downloaded Blacklist\n\n(If \"Yes\" is checked, you need to specify the http/https address and login/password, if applicable)"]
[]
["Использование автоматически загружаемого Whitelist\n\n(При отметке «Да», нужно указать адрес http/https и логин/пароль, если применимо)\n\nUsing an automatically downloaded Whitelist\n\n(If \"Yes\" is checked, you need to specify the http/https address and login/password, if applicable)"]
[]
[]
[]
[]
["Таблица 2 / Table 2"]
["Список технических характеристик защищаемых Ресурсов Клиента для защиты на уровне L3/L4\nList of technical characteristics of protected Customer Resources for protection at the L3/L4 level"]
["№","IP-адрес/Пул IP-адресов\nIP Address/IP Address pool","DNS-имя(имена)\nDNS Name(s)","Сервис\nService","Протоколы\nProtocols","Сетевые порты\nNetwork ports"]
[1,"-","-","-","-","-"]
[null,null,null,null,"-","-"]
[null,null,null,null,"-","-"]
[2,"-","-","-","-","-"]
[null,null,null,null,"-","-"]
[null,null,null,null,"-","-"]
[3,"-","-","-","-","-"]
[null,null,null,null,"-","-"]
[null,null,null,null,"-","-"]
["…","-","-","-","-","-"]
["Пример заполнения / Example of filling"]
[1,"194.31.12.2","domain.com","WEB-сервер\n\nWeb server","HTTP","TCP 80,81,88"]
[null,"194.31.12.3","example.ru",null,"HTTPS","TCP 443"]
[2,"194.31.12.4","mail.domain.com","Почтовый сервер\n\nEmail server","SMTP(S)","TCP 25,465,587,2525"]
[null,null,"mail.example.ru",null,"POP3(S)","TCP 110,995"]
[null,null,null,null,"IMAP(S)","TCP 143,993"]
[null,null,null,null,"HTTPS","TCP 443"]
[3,"194.31.12.5","ns1.domain.com","DNS-сервер (рекурсивный открытый/ рекурсивный закрытый/ авторитативный)\n\nDNS server (recursive open/ recursive close/ authoritative)","DNS","TCP 53, UDP 53"]
[null,null,"ns1.example.ru"]
[4,"195.32.42.12","ns2.domain.com","DNS-сервер (рекурсивный открытый/ рекурсивный закрытый/ авторитативный)\n\nDNS server (recursive open/ recursive close/ authoritative)","DNS","TCP 53, UDP 53"]
[null,null,"ns2.example.ru"]
[5,"194.31.12.6","vpn.domain.com","VPN шлюз\n\nVPN gateway","PPTP","GRE, TCP 1723"]
[null,null,null,null,"L2TP","TCP 1701, UDP 1701"]
[null,null,null,null,"SSTP","TCP 443"]
[]
[]
[]
["Комментарий / Comment"]

{"sheet":"Data","index":11,"n_rows":36,"n_cols":162,"rows_kept":36,"cut":false,"hidden":true,"merged":[[0,100,0,110],[0,1,0,2],[0,3,0,8],[0,9,0,14],[0,15,0,16],[0,17,0,32],[0,148,0,151],[0,33,0,36],[0,37,0,42],[0,143,0,147],[0,126,0,128],[0,138,0,142],[0,114,0,116],[0,43,0,58],[0,59,0,75],[0,76,0,79],[0,129,0,137],[0,111,0,113],[0,117,0,121],[0,123,0,124],[0,80,0,99]]}
["Услуга","Internet_Direct",null,"Internet_Direct_Registration",null,null,null,null,null,"Internet_Umbrella",null,null,null,null,null,"Internet_Direct_Domain",null,"Managed_ Lan",null,null,null,null,null,null,null,null,null,null,null,null,null,null,null,"Business_VPN",null,null,null,"Managed_Router",null,null,null,null,null,"B2G_AVAYA",null,null,null,null,null,null,null,null,null,null,null,null,null,null,null,"B2G_CISCO",null,null,null,null,null,null,null,null,null,null,null,null,null,null,null,null,"Internet_VPN",null,null,null,"EAM",null,null,null,null,null,null,null,null,null,null,null,null,null,null,null,null,null,null,null,"Cloud_DC_ex.FCA",null,null,null,null,null,null,null,null,null,null,"FCP",null,null,"Yandex.Cloud_for_Business",null,null,"AWS",null,null,null,null,"Business_Talk","Managed_Firewall",null,null,"Connectivity_Encryption",null,null,"CyberSOC",null,null,null,null,null,null,null,null,"Orange_Smart_Track",null,null,null,null,"Maritime_VSAT ",null,null,null,null,"Smart_Access_Standard",null,null,null,"Ethernet_Link","LAN-TO-LAN/Managed_MWA","NPL","DWA","SD_WAN","IoT","Virtual_PBX","Access_to_Financial_ Services","Access_to_SWIFT","Customer_Portal"]
["код","110.99.02","110.99.99","110.99.03","110.99.05","110.99.14","110.99.15","110.99.13","110.99.99","110.99.07","110.99.11","110.99.12","110.99.16","110.99.17","110.99.99","110.99.08","110.99.99","490.99.03","490.99.04","490.99.05","490.99.06","490.99.07","490.99.08","490.99.09","490.99.10","490.99.11","490.99.12","490.99.13","490.99.14","490.99.15","490.99.16","490.99.17","490.99.99","115.99.01","115.99.02","115.99.06","115.99.99","101.99.01","101.99.07","101.99.03","101.99.04","101.99.08","101.99.99","460.99.01","460.99.02","460.99.03","460.99.04","460.99.05","460.99.06","460.99.07","460.99.08","460.99.09","460.99.10","460.99.11","460.99.12","460.99.13","460.99.14","460.99.15","460.99.99","460.99.16","460.99.17","460.99.18","460.99.19","460.99.20","460.99.21","460.99.22","460.99.23","460.99.24","460.99.25","460.99.26","460.99.27","460.99.28","460.99.29","460.99.30","460.99.31","460.99.99","115.99.03","115.99.04","115.99.05","115.99.99","420.99.01","420.99.02","420.99.03","420.99.04","420.99.05","420.99.06","420.99.07","420.99.08","420.99.09","420.99.10","420.99.11","420.99.12","420.99.13","420.99.14","420.99.15","420.99.16","420.99.17","420.99.18","420.99.19","420.99.99","448.99.02","448.99.03","448.99.04","448.99.06","448.99.07","448.99.08","448.99.09","448.99.10","448.99.11","448.99.12","448.99.99","440.99.01","440.99.03","440.99.99","446.99.01","446.99.02","446.99.03","447.99.01","447.99.02","447.99.03","447.99.04","447.99.99","522.99.08","131.99.01","131.99.99","131.99.99","131.99.21","131.99.22","131.99.99","131.99.23","131.99.24","131.99.25","131.99.26","131.99.27","131.99.28","131.99.29","131.99.30","131.99.99","777.99.01","777.99.02","777.99.03","777.99.04","777.99.05","201.99.06","201.99.07","201.99.08","201.99.09","201.99.99","201.99.10","201.99.11","201.99.12","201.99.99","118.99.99","802.99.99","204.99.99","117.99.99","102.99.99","777.99.99","540.99.99","716.99.99","728.99.99","109.99.01"]
["Тип запроса","Политики динамической маршрутизации (BGP)","Нестандартные изменения параметров ","Изменение ресурсных записей","Изменение настроек АC в RIPE","Изменение записей PA адресов в RIPE","Изменение записей PI адресов в RIPE","Изменение записей в обратной зоне DNS","Нестандартные изменения параметров ","Изменение настроек для Объектов защиты ","Изменение E-mail для уведомлений от системы и предоставления ежемесячных отчетов","Изменение логина/пароля для WEB-интерфейса ","Актуализация Технического опросника","Ручная загрузка Blacklist/Whitelist","Нестандартные изменения параметров ","DNS changing ","Нестандартные изменения параметров ","Simp_Изменение access VLAN на порту доступа коммутатора","Simp_Изменение description на порту доступа коммутатора","Simp_Изменение скорости/дуплекса порта доступа коммутатора","Simp_Изменение конфигурации Port Security на порту доступа ","Simp_Добавление/удаление spanning tree portfast ","Simp_Добавление/удаление BPDU Guard на порту доступа ","Simp_Включение/выключение Voice VLAN на порту доступа ","Simp_Изменение QoS trust на порту доступа коммутатора","Simp_Включение/выключение порта доступа коммутатора","Std_Изменение hostname коммутатора","Std_Перевод порта доступа коммутатора в режим trunk","Std_Добавление/удаление новых VLAN на коммутаторе","Std_Add/Del новых VLAN на транк м/у коммутаторами","Std_Изменения в общих настройках Spanning Tree ","Simp_Изменение списка пользователей Wi-Fi ","Нестандартные изменения параметров ","Добавление/изменение/удаление маршрута на IPVPN порту","Изменение политик маршрутизации на IPVPN порту","Изменение профиля трафика сервиса IPVPN GOLD в процентном соотношении между Data 1, Data 2 и Data 3","Нестандартные изменения параметров ","Конфигурация LAN порта","Добавление статических IP-маршрутов ","Изменение голосовых маршрутов ","Конфигурация и изменение списков доступа (ACL)","Конфигурация LAN порта в режиме транк","Нестандартные изменения параметров ","Simp_Изменение базовых параметров пользователя/ТА ","Simp_Изменение Speed Dial номеров  ","Simp_Установка/изменение ограничений доступа к ТфОП ","Simp_Установка/изменение/снятие переадресации ","Simp_Изменение/сброс пароля пользователя (PIN) ","Simp_Изменение языка интерфейса ТА ","Std_Add/Del операторов телефонной станции (Read-Only)","Std_Изменение классов ограничений выхода в ТфОП ","Std_Изменение настроек Hunt Group ","Std_Добавление/изменение/удаление ДВО (доп.видов обслуживания)","Std_Настройка Mobility (Twinning)","Std_Изменения soft-key шаблонов ","Std_Смена MOH ","Adv_Добавление/изменение  голосовых приветствий и оповещений ","Adv_Изменение настроек соединительных/транковых линий ","Нестандартные изменения параметров ","Simp_Изменение базовых параметров пользователя/ТА","Simp_Изменение Speed Dial номеров ","Simp_Установка/изменение ограничений доступа к ТфОП ","Simp_Установка/изменение/снятие переадресации ","Simp_Изменение/сброс пароля пользователя (PIN)","Simp_Изменение языка интерфейса ТА","Std_Add/Del операторов телефонной станции (Read-Only)","Std_Изменение классов ограничений выхода в ТфОП","Std_Изменение настроек Hunt Group","Std_Добавление/изменение/удаление ДВО (доп.видов обслуживания)","Std_Настройка Mobility (Single Number Rich)","Std_Изменения soft-key шаблонов","Std_Смена типа ТА у пользователя","Std_Смена MOH","Adv_Добавление/изменение голосовых приветствий и оповещений","Adv_Изменение настроек соединительных/транковых линий","Нестандартные изменения параметров ","Изменение логина и пароля для доступа на портал ","Перевыпуск цифрового пользовательского сертификата","Внесение изменений в план адресации ","Нестандартные изменения параметров ","Simp_Добавление/изменение/удаление CIFS Prepopulation config","Simp_Удаление Data Store Sync","Simp_Удаление политик QoS для нового приложения","Simp_Изменение Hostname ","Simp_Изменение  IP Name Server","Simp_Очистка кэша","Simp_Add/Change/Delete в отчет секции по специфическому приложению","Simp_Удаление pass-through правила для приложения","Simp_Изменение настроек SNMP","Simp_Добавление/изменение/удаление RBAC","Std_Добавление/изменение/удаление CIFS Optimization with SMB Signing","Std_Добавление DataStore Sync","Std_Изменение Primary IP адресации","Std_Именение настроек Inpath interface MTU","Std_Добавление или удаление настроек MAPI","Std_Добавление или удаление настроек MAPI Prepopulation","Adv_Inpath Data VLAN changing/deleting ","Adv_Inpath IP address changing","Adv_SSL License adding/deleting","Нестандартные изменения параметров ","Изменение логина и (или) пароля доступа к Порталу","Изменение IP адресов, с которых клиенту разрешён доступ на Портал","Добавление клиентских VM/образов в VDC c FTPS сервера","Добавление/изменение данных для авторизации на межсетевом экране ","Добавление ISO образов и шаблонов VM","Выгрузка VM/образов с vDC на FTPS сервер Orange","Изменение разрешённого количества шаблонов VM","Изменение распределения дисковой ёмкости в ГБ между ДЦ","Миграция Виртуальных машин с\\на площадку Клиента","Создание, изменение и удаление виртуальных сетей","Нестандартные изменения параметров ","Change user accounts’ rights in the vCenter","Add new virtual LAN (VLAN)","Нестандартные изменения параметров ","Добавление/отключение подписок в Яндекс 360","Изменение количества пользователей в подписке Яндекс 360","Создание новых учётных записей Яндекса","Cоздание новых Учётных Записей AWS для Клиента ","Миграция существующих Учётных Записей AWS в Orange ","Полное удаление Учётных Записей AWS Клиента ","Исключение Учётных Записей AWS Клиента из Orange ","Нестандартные изменения параметров ","Черный список ","Изменение конфигурации услуги","Нестандартные изменения параметров ","Нестандартные изменения параметров ","Добавление/Изменение/Удаление Access Control List (ACL) ","Запрос на выпуск сертификата ","Нестандартные изменения параметров ","Подключить новый тип стандартного источника","Подключенный источник событий","Используемый Use-case","Индикатор компрометации","VPN туннель","Удаленный доступ к SIEM","Доступ к системам (Customer portal и др.)","Информация о Клиенте","Нестандартные изменения параметров","Изменение чувствительности UWB-тэга","Изменение частоты опроса UWB-тэга","Изменение уровня вибрации UWB-тэга","Изменение радиуса действия UWB-анкера","Замена карты (подложки) сайта","Предоставление доступа к VSAT Portal","Добавление/удаление пользователя","Установка ПО OverSea на ПК на судне","Восстановление пароля на VSAT Portal","Нестандартные изменения параметров ","Предоставление доступа к VSAT Portal","Добавление/удаление пользователя","Восстановление пароля на VSAT Portal","Нестандартные изменения параметров ","Нестандартные изменения параметров ","Нестандартные изменения параметров ","Нестандартные изменения параметров ","Нестандартные изменения параметров ","Нестандартные изменения параметров ","Нестандартные изменения параметров ","Нестандартные изменения параметров ","Нестандартные изменения параметров ","Нестандартные изменения параметров ","Предоставление доступа"]
["описание запроса","Конфигурирование политик маршрутизации BGP","Нестандартные изменения параметров ","Изменение настроек DNS для домена поддерживаемого в рамках услуги","Измение в базе данных RIPE настроек AS","Изменение записей РА адресов в базе данных RIPE ","Изменение записей PI адресов в базе данных RIPE","Изменение параметров обратной зоны DNS ","Нестандартные изменения параметров ","Настройки для Объектов защиты ","Изменение электронного адреса для получения Клиентом уведомлений/ежемесячных отчетов","Изменение логина и пароля для доступа к on-line мониторингу ","Актуализировать Технический Опросник","Ручная загрузка Blacklist/Whitelist","Нестандартные изменения параметров ","Изменение настроек DNS для домена поддерживаемого в рамках услуги ","Нестандартные изменения параметров ","Изменение access VLAN C порта B на устройстве А","Изменение description порта B на устройстве А","Конфигурация порта B на устройстве А c параметрами C и D.","Изменение конфигурации порта B на устройстве А c параметрами C, D, E.","Конфигурация порат B на устройстве А c параметрами C ","Конфигурация порта B на устройстве А c параметрами C ","Конфигурация порта B на устройстве А c параметрами C и D.","Изменение QoS trust на порту доступа коммутатора","Конфигурация порта B на устройстве А c параметрами C ","Изменение параметра B на устройстве А","Конфигурация порта B на устройстве А c параметрами C ","Конфигурация порта B на устройстве А c параметрами C ","Добавление/удаление новых VLAN на транк между коммутаторами  с обеих сторон транка(действие D на VLAN C на портах B1 и B2 на устройствах А1 и А2)","Конфигурация порта B на устройстве А c параметрами C (priority для VLAN, cost на порту)","Изменение списка пользователей Wi-Fi ","Нестандартные изменения параметров ","Добавление/изменение/удаление маршрута на IPVPN порту","Изменение политик маршрутизации на IPVPN порту","Изменение профиля трафика сервиса IPVPN GOLD в процентном соотношении между Data 1, Data 2 и Data 3","Нестандартные изменения параметров ","Конфигурация LAN порта","Добавление статические IP-маршруты ","Изменение голосовых маршрутов ","Конфигурация и изменение списка доступа","Конфигурация LAN порта в режиме транк","Нестандартные изменения параметров ","Изменение имени, номера, удаление телефонного аппарата"," Изменение/добавление Speed Dial (номер быстрого набора на клавише ТА)","Ограничение вызовов согласно настроенным в системе классам ограничений ","Изменение переадресации по неответу, по занято и безусловной переадресации ","Изменение/сброс пароля пользователя (PIN)","Изменение языка интерфейса телефонного аппарата пользователя","Добавление/удаление операторов телефонной станции  на Read-Only","Добавление/изменение/удаление ограничения вызовов","Изменение настроек Hunt Group","Добавление/изменение/удаление ДВО (Meet-Me conf, call park, intercom, FAC, PickUP) ","Активирование функции Mobility (Twinning)-распараллеливание входящего вызова на внутренний или внешний  номер ","Изменение настроек soft keys на телефонном аппарате пользователя","Изменение Music on Hold","Добавление/изменение заранее записанных Клиентом голосовых приветствий автосекретаря ","Изменение текущей конфигурации транка","Нестандартные изменения параметров ","Изменение имени, номера, удаление телефонного аппарата","Изменение/добавление Speed Dial (номер быстрого набора на клавише ТА), Abbreviated dial - системный номер быстрого набора в УПАТС","Ограничение вызовов согласно настроенным в системе классам ограничений ","Изменение переадресации по неответу, по занято и безусловной переадресации ","Изменение/сброс пароля пользователя (PIN)","Изменение языка интерфейса телефонного аппарата пользователя","Добавление/удаление операторов телефонной станции на Read-Only","Добавление/изменение/удаление ограничения вызовов ","Изменение настроек Hunt Group","Добавление/изменение/удаленипе ДВО (Meet-Me conf, call park, intercom, FAC, PickUP)","Активирование функции Mobility (Single Number Rich)","Изменение настроек soft keys на телефонном аппарате пользователя","Смена типа ТА у пользователя ","Изменение Music on Hold","Добавление/изменение заранее записанных Клиентом голосовых приветствий автосекретаря ","Изменение текущей конфигурации транка","Нестандартные изменения параметров ","Изменение логина и пароля для доступа на портал управления Услугой","Перевыпуск цифрового пользовательского сертификата","Внести изменения в план адресации применяемой на сети Internet VPN (IP адреса, присваемые Оборудованию и Удаленным пользователям)","Нестандартные изменения параметров ","Добавить/измененить/удалить CIFS Prepopulation config","Удалить Data Store Sync","Удалить политику QoS для нового приложения","Изменить Hostname ","Изменить  IP Name Server","Очистить кэш","Добавить/изменить/удалить в отчет секции по специфическому приложению","Удалить pass-through правило для приложения","Изменить настройки SNMP","Добавить/изменить/удалить RBAC","Добавить/изменить/удалить CIFS Optimization with SMB Signing","Добавить DataStore Sync","Измененить Primary IP адресации","Имененить настройки Inpath interface MTU","Добавить или удалить настройки MAPI","Добавить или удалить настройки MAPI Prepopulation","Удаление и редактирование Inpath Data VLAN ","Изменение Inpath IP address","Добавление и удаление SSL License ","Нестандартные изменения параметров ","Изменить логин и (или) пароль доступа к Порталу","Изменить IP адреса, с которых разрешён доступ клиенту на Портал","Загрузка клиентских VM/образов c FTPS сервера в vCloud Director/Media Catalog при первоначальной инсталляции vDC","Добавить/измененить данные для авторизации на межсетевом экране ","Добавить шаблоны VM ","Выгрузка клиентских VM/образов на FTPS сервера Orange","Изменение разрешённого количества шаблонов VM ","Изменение распределения дисковой ёмкости в ГБ между Дата центрами в пределах текущей общей ёмкости","Миграция Виртуальных машин с\\на площадку Клиента (возможна только при совпадающим поставщике платформы виртуализации)","Создание, изменение и удаление\nвиртуальных сетей","Нестандартные изменения параметров ","Изменение прав пользователей в vCenter","Добавление новой виртуальной сети (VLAN)","Нестандартные изменения параметров ","Добавление или отключение подписок в Яндекс 361","Изменение количества пользователей в подписке Яндекс 361","Создание новых Учётных Записей Яндекса","Cоздание новых Учётных Записей AWS для Клиента ","Миграция существующих Учётных Записей AWS в Orange ","Полное удаление Учётных Записей AWS Клиента ","Исключение Учётных Записей AWS Клиента из Orange ","Нестандартные изменения параметров ",null,"Изменить description на порту доступа МСЭ","Нестандартные изменения параметров ","Нестандартные изменения параметров ","Добавить/Изменить/Удалить Access Control List (ACL) ","Запрос на выпуск сертификата ","Нестандартные изменения параметров ","Подключить новый тип стандартного источника","Подключенный источник событий","Используемый Use-case","Индикатор компрометации","VPN туннель","Удаленный доступ к SIEM","Доступ к системам (Customer portal и др.)","Информация о Клиенте",null,"Изменение чувствительности UWB-тэга","Изменение частоты опроса UWB-тэга","Изменение уровня вибрации UWB-тэга","Изменение радиуса действия UWB-анкера","Замена карты (подложки) сайта","Предоставить доступ к VSAT Portal","Добавить/удалить пользователя","Установка ПО OverSea на ПК на судне","Восстановление пароля на VSAT Portal","Нестандартные изменения параметров ","Предоставить доступ к VSAT Portal","Предоставить доступ к VSAT Portal","Восстановление пароля на VSAT Portal","Нестандартные изменения параметров ","Нестандартные изменения параметров ","Нестандартные изменения параметров ","Нестандартные изменения параметров ","Нестандартные изменения параметров ","Нестандартные изменения параметров ","Нестандартные изменения параметров ","Нестандартные изменения параметров ","Нестандартные изменения параметров ","Нестандартные изменения параметров ","Предоставление доступа"]
["параметр 1","Желаемый объем таблицы маршрутизации (выбрать): \n1. default  - (только дефолт)\n2. AS-RoSprint (+default) – (входят маршруты, получаемые с IX)\n3. Full (+default) (полная таблица)","Внимание! Данный тип запроса не является стандартным и выбирается для заполнения только в том случае, если запрашиваемые изменения не подходят под другие типы запросов в рамках данной услуги. Заявка автоматически отправляется на предварительное согласование, что увеличивает общий срок обработки обращения.","a) Значение какой ресурсной записи необходимо изменить (A, AAAA, MX, CNAME, NS, PTR, ...)","a) Номер AS","a) Название сети (netname)","а) Название сети (netname)","a) Значение какой ресурсной записи необходимо изменить (CNAME, PTR и др.)","Внимание! Данный тип запроса не является стандартным и выбирается для заполнения только в том случае, если запрашиваемые изменения не подходят под другие типы запросов в рамках данной услуги. Заявка автоматически отправляется на предварительное согласование, что увеличивает общий срок обработки обращения.","a) Список Ресурсов (Например: IP, DNS-имя, Сервис, Протоколы, Сетевые порты, SNI)","Новый электронный адрес ",null,"ПРИМЕЧАНИЕ: перейдите в  лист \"Технический опросник\" для предоставления необходимой информации","Blacklist/Whitelist (с разделение построчно, в формате.txt)","Внимание! Данный тип запроса не является стандартным и выбирается для заполнения только в том случае, если запрашиваемые изменения не подходят под другие типы запросов в рамках данной услуги. Заявка автоматически отправляется на предварительное согласование, что увеличивает общий срок обработки обращения.","a) Имя DNS-серверов (не менее двух)","Внимание! Данный тип запроса не является стандартным и выбирается для заполнения только в том случае, если запрашиваемые изменения не подходят под другие типы запросов в рамках данной услуги. Заявка автоматически отправляется на предварительное согласование, что увеличивает общий срок обработки обращения.","1. Устройство №1\na) Название \nb) Номер порта\nc) Новый номер VLAN, имя VLAN (если VLAN новый)\n","1. Устройство №1\na) Название \nb) Номер порта\nc) Новый description\n","1. Устройство №1\na) Название \nb) Номер порта\nc) Скорость (10/100/1000)\nd) Duplex (half/full)\n","1. Устройство №1\na) Название \nb) Номер порта\nc) Port Security (включить/выключить)\nd) Количество разрешенных MAC адресов для каждого используемого VLAN\ne) Опция sticky (включить/выключить)\n","1. Устройство №1\na) Название \nb) Номер порта\nc) Spanning tree portfast (добавить/удалить)\n","1. Устройство №1\na) Название \nb) Номер порта\nc) BPDU Guard  (добавить/удалить)\n","1. Устройство №1\na) Название \nb) Номер порта\nc) Номер голосового VLAN\nd) Voice Vlan (включить/выключить)\n","1. Устройство №1\na) Название \nb) Номер порта\nc) Новая политика доверия QoS (trust cos, trust dscp, trust device cisco-phone, убрать все trust)\n","1. Устройство №1\na) Название \nb) Номер порта\nc) Порт доступа (включить/выключить)\n","1. Устройство №1\na) Название \nb) Новый hostname\n","1. Устройство №1\na) Название \nb) Номер порта\nc) Разрешенные на новом trunk VLAN\n","a) Название устройства №1","a) Название устройства\n1. А1\n2. А2\n\n\n","a) Название устройства №1",null,"Внимание! Данный тип запроса не является стандартным и выбирается для заполнения только в том случае, если запрашиваемые изменения не подходят под другие типы запросов в рамках данной услуги. Заявка автоматически отправляется на предварительное согласование, что увеличивает общий срок обработки обращения.","a) Адрес сети, маска сети"," a) Адрес сети, маска сети","a) Номер контракта","Внимание! Данный тип запроса не является стандартным и выбирается для заполнения только в том случае, если запрашиваемые изменения не подходят под другие типы запросов в рамках данной услуги. Заявка автоматически отправляется на предварительное согласование, что увеличивает общий срок обработки обращения.","a) Название интерфейса","a) IP-сеть, маска","a) Название голосовых портов","Technical requirements","a) Номера VLAN","Внимание! Данный тип запроса не является стандартным и выбирается для заполнения только в том случае, если запрашиваемые изменения не подходят под другие типы запросов в рамках данной услуги. Заявка автоматически отправляется на предварительное согласование, что увеличивает общий срок обработки обращения.","1. Удалить: \na) Имя пользователя \nb) Номер extension (и/или)\n","1. Системный Speed Dial: \na) Имя Speed Dial (любой буквенно цифровой формат)\nb) Набираемый номер (цифры)\n","a) Имя пользователя ","a) Имя пользователя","a) Имя пользователя ","a) Имя пользователя ","1. Удалить\na) Имя оператора\n","1. Только внутренние вызовы\na) Добавить / изменить / удалить (выбрать)","1. Добавить в группу extension/s \na) Имя группы\nb) extension группы\nc) номер/а, которые следует добавит в группу\n","ПРИМЕЧАНИЕ: в IP Office перечисленные функции доступны по-умолчанию и имеют предустановленные (default) коды доступа\nДля ДВО (Meet-Me conf, call park, intercom, PickUP...) - указать функцию, изменить/удалить код доступа","a) Имя пользователя\n\n","a) Имя  пользователя\n\n","a) Источник - wav file  ","a) Файлы приветствий  \n","a) Тип транка - ISDN-PRI, SIP","Внимание! Данный тип запроса не является стандартным и выбирается для заполнения только в том случае, если запрашиваемые изменения не подходят под другие типы запросов в рамках данной услуги. Заявка автоматически отправляется на предварительное согласование, что увеличивает общий срок обработки обращения.","1. Удалить\na) Имя пользователя \nb) Номер extension \n","1. Пользовательский Speed Dial: \na) Номер extension, которому будет присвоен пользовательский Speed Dial \nb) Имя Speed Dial (любой буквенно-цифровой формат)\nc) Набираемый номер (цифры)\nd) Изменить/Добавить (выбрать)\n\n","a) Имя пользователя ","a) Имя пользователя","a) Имя пользователя ","a) Имя пользователя ","1. Удалить\na) Имя оператора","1. Только внутренние вызовы\na) Добавить / изменить / удалить (выбрать)\n","1. Добавить в группу extension/s \na) Имя группы\nb) extension группы\nc) номер/а, которые следует добавить в группу\n","1. Безусловная переадресация call forward all calls (указать ТА):\na) Имя пользователя\nb) Номер extension\n","a) Имя пользователя","a) Имя  пользователя","a) Имя  пользователя","a) Источник - wav file  ","a) Файлы приветствий  ","a) Тип транка - ISDN-PRI, SIP","Внимание! Данный тип запроса не является стандартным и выбирается для заполнения только в том случае, если запрашиваемые изменения не подходят под другие типы запросов в рамках данной услуги. Заявка автоматически отправляется на предварительное согласование, что увеличивает общий срок обработки обращения."," "," ","a) Адрес сети, маска сети","Внимание! Данный тип запроса не является стандартным и выбирается для заполнения только в том случае, если запрашиваемые изменения не подходят под другие типы запросов в рамках данной услуги. Заявка автоматически отправляется на предварительное согласование, что увеличивает общий срок обработки обращения.","1.Устройство №1\na) Имя устройства\nb) Действие (добавление/удаление/изменение)\nc) Имя shared folder на файловом сервере\nd) имя пользователя и пароль  (если доступ к shared folder ограничен по пользователям)\n","1.Устройство №1\na) Имя устройства","1.Устройство №1\na) Имя устройства\nb) Название политики QoS, которую надо удалить\n","1.Устройство №1\na) Имя устройства\nb) Новый Hostname\n","1.Устройство №1\na) Имя устройства\nb) Новый DNS IP address\n","1.Устройство №1\na) Имя устройства\n\n","1. Устройство №1\na) Имя устройства\nb) Действие (добавление/удаление/изменение)\nc) Название приложения\nd) опишите кратко, что требуется исправить в отчете\n","1. Устройство №1\na) Имя устройства\nb) Номер правила или название приложения\n","1.Устройство №1\na) Имя устройства\nb) SNMP параметр\nс) Новое значение\n","1. Устройство №1\na) Имя устройства\nb) Действие (добавление/удаление/изменение)\nc) User permission\nd) Значение (Deny, Read-Only)\n","1. Устройство №1\na) Имя устройства\nb) Действие (добавление/удаление/изменение)\nc) Тип SMB (clear/signed)\nd) Суть изменения (кратко описать)\n","1.Устройство №1\na) Имя устройства","1.Устройство №1\na) Имя устройства\nb) Новый Primary IP address\n","1.Устройство №1\na) Имя устройства\nb) Новое значение MTU\n","1.Устройство №1\na) Имя устройства\nb) Действие (добавление/удаление)\n","1.Устройство №1\na) Имя устройства\nb) Действие (добавление/удаление)\n","1. Удалить:\na) Номер vlan \nb) Номер inpath интерфейса в моделях riverbed с несколькими inpath\n\n","a) Старый IP ","1. Добавить:\na) Имя riverbed, для которого выпускается лицензия\nb) Адрес размещения оборудования и почтовый индекс \n","Внимание! Данный тип запроса не является стандартным и выбирается для заполнения только в том случае, если запрашиваемые изменения не подходят под другие типы запросов в рамках данной услуги. Заявка автоматически отправляется на предварительное согласование, что увеличивает общий срок обработки обращения.","а) Название vDC","а) Название vDC","а) Название vDC","а) Название vDC","а) Название vDC","а) Название vDC","а) Название vDC","а) Site1 (Silver) и Site2 (Silver)","a) IP клиентского VCDA откуда открыть  доступ","1. Удаление сети\na) Название VDC\nb) Имя сети","Внимание! Данный тип запроса не является стандартным и выбирается для заполнения только в том случае, если запрашиваемые изменения не подходят под другие типы запросов в рамках данной услуги. Заявка автоматически отправляется на предварительное согласование, что увеличивает общий срок обработки обращения.","a) Идентификатор пользователя","a) Имя сети (рекомендуемый формат сеть/маска имя_сети)","Внимание! Данный тип запроса не является стандартным и выбирается для заполнения только в том случае, если запрашиваемые изменения не подходят под другие типы запросов в рамках данной услуги. Заявка автоматически отправляется на предварительное согласование, что увеличивает общий срок обработки обращения.","a) ORG ID","a) ORG ID","a) Яндекс ID Клиента","Адреса электронной почты для корневого доступа к создаваемым Учётным Записям AWS","ID Учётных Записей AWS, которые необходимо добавить в AWS Организацию Orange","ID Учётных Записей AWS, которые необходимо удалить из AWS Организации Orange","ID Учётных Записей AWS, которые необходимо удалить из AWS Организации Orange","Внимание! Данный тип запроса не является стандартным и выбирается для заполнения только в том случае, если запрашиваемые изменения не подходят под другие типы запросов в рамках данной услуги. Заявка автоматически отправляется на предварительное согласование, что увеличивает общий срок обработки обращения.","a) номер телефона ","ПРИМЕЧАНИЕ: перейдите в  лист \"MFW\" для предоставления необходимой информации","Внимание! Данный тип запроса не является стандартным и выбирается для заполнения только в том случае, если запрашиваемые изменения не подходят под другие типы запросов в рамках данной услуги. Заявка автоматически отправляется на предварительное согласование, что увеличивает общий срок обработки обращения.","Внимание! Данный тип запроса не является стандартным и выбирается для заполнения только в том случае, если запрашиваемые изменения не подходят под другие типы запросов в рамках данной услуги. Заявка автоматически отправляется на предварительное согласование, что увеличивает общий срок обработки обращения.",null,null,"Внимание! Данный тип запроса не является стандартным и выбирается для заполнения только в том случае, если запрашиваемые изменения не подходят под другие типы запросов в рамках данной услуги. Заявка автоматически отправляется на предварительное согласование, что увеличивает общий срок обработки обращения.","a) Тип источника","a) Тип источника","a) Указать use-case","a) Указать информацию об индикаторе компрометации","a) Адрес сайта","a) Выбрать действие: предоставить/удалить","a) Указать логин","a) Указать информацию","Внимание! Данный тип запроса не является стандартным и выбирается для заполнения только в том случае, если запрашиваемые изменения не подходят под другие типы запросов в рамках данной услуги. Заявка автоматически отправляется на предварительное согласование, что увеличивает общий срок обработки обращения.","a) серийный номер UWB-тэга","a) серийный номер UWB-тэга","a) серийный номер UWB-тэга","a) серийный номер UWB-тэга","a) указать сайт и объект на сайте, к которому относятся изменения","a) ФИО пользователя \n","a) ФИО пользователя \n","a) описание ПК – где установлен, как называется (например, компьютер в ходовой рубке)","a) Логин пользователя (email)","Внимание! Данный тип запроса не является стандартным и выбирается для заполнения только в том случае, если запрашиваемые изменения не подходят под другие типы запросов в рамках данной услуги. Заявка автоматически отправляется на предварительное согласование, что увеличивает общий срок обработки обращения.","a) ФИО пользователя \n","a) ФИО пользователя \n","a) Логин пользователя (email)","Внимание! Данный тип запроса не является стандартным и выбирается для заполнения только в том случае, если запрашиваемые изменения не подходят под другие типы запросов в рамках данной услуги. Заявка автоматически отправляется на предварительное согласование, что увеличивает общий срок обработки обращения.","Внимание! Данный тип запроса не является стандартным и выбирается для заполнения только в том случае, если запрашиваемые изменения не подходят под другие типы запросов в рамках данной услуги. Заявка автоматически отправляется на предварительное согласование, что увеличивает общий срок обработки обращения.","Внимание! Данный тип запроса не является стандартным и выбирается для заполнения только в том случае, если запрашиваемые изменения не подходят под другие типы запросов в рамках данной услуги. Заявка автоматически отправляется на предварительное согласование, что увеличивает общий срок обработки обращения.","Внимание! Данный тип запроса не является стандартным и выбирается для заполнения только в том случае, если запрашиваемые изменения не подходят под другие типы запросов в рамках данной услуги. Заявка автоматически отправляется на предварительное согласование, что увеличивает общий срок обработки обращения.","Внимание! Данный тип запроса не является стандартным и выбирается для заполнения только в том случае, если запрашиваемые изменения не подходят под другие типы запросов в рамках данной услуги. Заявка автоматически отправляется на предварительное согласование, что увеличивает общий срок обработки обращения.","Внимание! Данный тип запроса не является стандартным и выбирается для заполнения только в том случае, если запрашиваемые изменения не подходят под другие типы запросов в рамках данной услуги. Заявка автоматически отправляется на предварительное согласование, что увеличивает общий срок обработки обращения.","Внимание! Данный тип запроса не является стандартным и выбирается для заполнения только в том случае, если запрашиваемые изменения не подходят под другие типы запросов в рамках данной услуги. Заявка автоматически отправляется на предварительное согласование, что увеличивает общий срок обработки обращения.","Внимание! Данный тип запроса не является стандартным и выбирается для заполнения только в том случае, если запрашиваемые изменения не подходят под другие типы запросов в рамках данной услуги. Заявка автоматически отправляется на предварительное согласование, что увеличивает общий срок обработки обращения.","Внимание! Данный тип запроса не является стандартным и выбирается для заполнения только в том случае, если запрашиваемые изменения не подходят под другие типы запросов в рамках данной услуги. Заявка автоматически отправляется на предварительное согласование, что увеличивает общий срок обработки обращения.","Внимание! Данный тип запроса не является стандартным и выбирается для заполнения только в том случае, если запрашиваемые изменения не подходят под другие типы запросов в рамках данной услуги. Заявка автоматически отправляется на предварительное согласование, что увеличивает общий срок обработки обращения.","a) Подписанное Соглашение об использовании клиентского портала "]
["параметр 2",null,null,"b) Новое значение ресурсной записи","b) Значение какого объекта необходимо изменить (as-name:, descr:, org:, import:, export:, admin-c:, tech-c:, mnt-by:, mnt-routes:, ...)","b) Описание (discr)","b) Описание (discr, org)","b) Новое значение записи",null,"b) Название контрмеры (Например, TCP_SYN_Atuth)","ПРИМЕЧАНИЕ: на указанные адреса будут приходить автоматические уведомления от Комплекса DDoS-защиты, а также ежемесячные отчеты. Может быть указано несколько email адресов. Желательно создавать лист рассылки, который будет прописан в системе.",null,null,null,null,"b)  IP-адреса",null,"2. Устройство №2\na) Название \nb) Номер порта\nc) Новый номер VLAN, имя VLAN (если VLAN новый)\n","2. Устройство №2\na) Название \nb) Номер порта\nc) Новый description\n","2. Устройство №2\na) Название \nb) Номер порта\nc) Скорость (10/100/1000)\nd) Duplex (half/full)\n","2. Устройство №2\na) Название \nb) Номер порта\nc) Включить/выключить Port Security (выбрать)\nd) Количество разрешенных MAC адресов для каждого используемого VLAN\ne) Опция sticky (включить/выключить)\n","2. Устройство №2\na) Название \nb) Номер порта\nc)Sspanning tree portfast (добавить/удалить)\n","2. Устройство №2\na) Название \nb) Номер порта\nc) BPDU Guard  (добавить/удалить)\n","2. Устройство №2\na) Название \nb) Номер порта\nc) Номер голосового VLAN\nd) Voice Vlan (включить/выключить)\n","2. Устройство №2\na) Название \nb) Номер порта\nc) Новая политика доверия QoS (trust cos, trust dscp, trust device cisco-phone, убрать все trust)\n","2. Устройство №2\na) Название \nb) Номер порта\nc) Порт доступа (включить/выключить)\n","2. Устройство №2\na) Название \nb) Новый hostname\n","2. Устройство №2\na) Название \nb) Номер порта\nc) Разрешенные на новом trunk VLAN\n","b) Номер VLAN","b) номер порта\n1. B1\n2. B2 \n\n","b) Новое значение  priority для VLAN",null,null,"b) Метрика сети","b) Метрика сети","b) Адрес",null,"b) IP-сеть, маска","b) Через какой IP-адрес маршрутизировать (Next hop)","b) IP адреса или название интерфейсов"," ","b) IP адресация для каждого VLAN",null,"2. Добавить:\n a) Имя пользователя\n b) Номер extension \n\n","2. Пользовательский Speed Dial: \na) Номер extension, которому будет присвоен пользовательский Speed Dial \nb) Имя Speed Dial (любой буквенно-цифровой формат)\nc) Набираемый номер (цифры)\n","b) Номер exstension","b) Номер extension","b) Номер exstension (и/или)","b) Номер exstension (и/или)","2. Добавить\na) Имя оператора\nb) Пароль\n","2. Междугородные и международные вызовы\na) Добавить / изменить / удалить (выбрать)","2. Изменить режим вызова для группы\na) Имя группы\nb) extension группы\nc)  Collective/ Collective Call Waiting/ Sequential/ Rotary/ Longest Waiting (выбрать требуемый)\n",null,"b) Номер extension","b) Номер extension\n","b) Внешний источник  ","b) Алгоритм обработки \n","b) Какие изменения конфигурации необходимо выполнить\n",null,"2. Добавить\n a) Имя пользователя\n b) Номер extension \n\n","2. Расширенный пользовательский Abbreviated dial\na) № Abb.dial (цифровой формат)\nb) Набираемый номер (цифры)\nc) Изменить/добавить (выбрать)\n","b) Номер exstension","b) Номер extension","b) Номер exstension (и/или)","b) Номер exstension (и/или)","2. Добавить\na) Имя оператора\nb) Пароль\n","2. Междугородные и международные вызовы\na) Добавить / изменить / удалить (выбрать)\n","2. Изменить режим вызова для группы\na) Имя группы\nb) extension группы\nc)  Sequential/ Longest-Idle/ Parallel (выбрать)\n","2. Условная переадресация\n2.1 - «неответ» call forward no answer (указать ТА): \na) Имя пользователя \nb) Номер extension\nc) Количество секунд, после которого вызов будет перенаправлен\n2.2 - «занято» call forward busy (указать ТА): \na) Имя пользователя \nb) Номер extension\n","b) Номер extension","b) Номер extension","b) Номер extension, где требуется сменить модель телефонного аппарата","b) Внешний источник  ","b) Алгоритм обработки ","b) Какие изменения конфигурации необходимо выполнить",null," "," ","b) Метрика сети",null,"2.Устройство №2\na) Имя устройства\nb) Действие (добавление/удаление/изменение)\nc) Имя shared folder на файловом сервере\nd) имя пользователя и пароль  (если доступ к shared folder ограничен по пользователям)\n","2.Устройство №2\na) Имя устройства","2.Устройство №2\na) Имя устройства\nb) Название политики QoS, которую надо удалить\n","2.Устройство №2\na) Имя устройства\nb) Новый Hostname\n","2.Устройство №2\na) Имя устройства\nb) Новый DNS IP address\n","2.Устройство №2\na) Имя устройства\n\n","2. Устройство №2\na) Имя устройства\nb) Действие (добавление/удаление/изменение)\nc) Название приложения\nd) Опишите кратко, что требуется исправить в отчете\n","2. Устройство №2\na) Имя устройства\nb) Номер правила или название приложения\n","2.Устройство №2\na) Имя устройства\nb) SNMP параметр\nс) Новое значение\n","2. Устройство №2\na) Имя устройства\nb) Действие (добавление/удаление/изменение)\nc) User permission\nd) Значение (Deny, Read-Only)\n","2. Устройство №2\na) Имя устройства\nb) Действие (добавление/удаление/изменение)\nc) Тип SMB (clear/signed)\nd) Суть изменения (кратко описать)\n","2.Устройство №2\na) Имя устройства","2. Устройство №2\na) Имя устройства\nb) Новый Primary IP address\n","2. Устройство №2\na) Имя устройства\nb) Новое значение MTU\n","2. Устройство №2\na) Имя устройства\nb) Действие (добавление/удаление)\n","2. Устройство №2\na) Имя устройства\nb) Действие (добавление/удаление)\n","2. Изменить:\nа) Старый vlan \nb) Новый vlan \nc) Номер inpath интерфейса в моделях riverbed с несколькими inpath\n","b) Новый IP ","2. Удалить:\na) Имя riverbed для которого удаляется  SSL License\n",null,"b) Имя пользователя","b) IP адрес (адреса) и/или сеть и маска","b) Имя образа","b) Имя пользователя","b) Количество шаблонов VM и ISO образов","b) Имя образа","b) Количество шаблонов VM","b) Site1 (Silver) и Site2 (Silver)","b) Название vDC","2. Создание сети\na) Название vDC\nb) Имя сети\nc) Указать сеть, маску сети и gw\n(дополнительные параметры в свободной форме)\n",null,"b) Роль: 1.Read-Only; 2.Virtual machine user","b) Vlan ID",null,"b) кол-во пользователей тарифа (требуется только для добавления подписок)","b) тариф","b) Яндекс ID пользователя",null,null,null,null,null,"b) CID (если есть)",null,null,null,null,null,null,"b) ПО","b) ПО","b) Выбрать действие: модифицировать/включить/отключить ","b) Выбрать действие: добавить/изменить/удалить","b) Выбрать действие: добавить/изменить/удалить",null,"b) Выбрать действие: добавить/изменить/удалить","b) Выбрать действие: добавить/изменить/удалить",null,"b) требуемая чувствительность UWB-тэга","b) требуемая частота опроса UWB-тэга","b) требуемый уровень вибрации UWB-тэга","b) требуемый радиус действия UWB-анкера в метрах","b) предоставить растровое изображение необходимой подложки или нужного участка карты в формате png или jpg","b) Email пользователя \n","b) Email пользователя \n","b) MAC адрес ПК",null,null,"b) Email пользователя \n","b) Email пользователя \n",null,null,null,null,null,null,null,null,null,null,null,"b) Приложение №1 к Соглашению"]
["параметр 3",null,null," ","c) Новые значения объектов, которые необходимо изменить","c) Контактное лицо (notify)","c) Контактное лицо (notify)",null,null," c) Действие к контрмере (Добавить/Удалить/Изменить)",null,null,null,null,null," ",null,"ПРИМЕЧАНИЕ: если изменения необходимо провести для нескольких коммутаторов, укажите соответствующие параметры для каждого","3. Устройство №3\na) Название \nb) Номер порта\nc) Новый description\n","3. Устройство №3\na) Название \nb) Номер порта\nc) Скорость (10/100/1000)\nd) Duplex (half/full)\n","3. Устройство №3\na) Название \nb) Номер порта\nc)  Port Security (включить/выключить)\nd) Количество разрешенных MAC адресов для каждого используемого VLAN\ne) Опция sticky (включить/выключить)\n","3. Устройство №3\na) Название \nb) Номер порта\nc) Spanning tree portfast (добавить/удалить)\n","3. Устройство №3\na) Название \nb) Номер порта\nc) BPDU Guard  (добавить/удалить)\n","3. Устройство №3\na) Название \nb) Номер порта\nc) Номер голосового VLAN\nd) Voice Vlan (включить/выключить)\n","3. Устройство №3\na) Название \nb) Номер порта\nc) Новая политика доверия QoS (trust cos, trust dscp, trust device cisco-phone, убрать все trust)\n","3. Устройство №3\na) Название \nb) Номер порта\nc) Порт доступа (включить/выключить)\n","3. Устройство №3\na) Название \nb) Новый hostname\n","3. Устройство №3\na) Название \nb) Номер порта\nc) Разрешенные на новом trunk VLAN\n","c) Добавить/удалить (выбрать)","c) Номер (название) VLAN","c) Новое значение cost",null,null," ","c) Порт","с) Номер БЗ, если есть",null," "," ","c) Voice gateway "," ",null,null,"ПРИМЕЧАНИЕ: отдельно указать, в случае добавления аналогового FAX",null,"c) Ограничения вызовов (выбрать нужное)\n1. Только внутренние вызовы.\n2. Междугородные и международные вызовы\n3. Международные вызовы\n4. Без ограничений\n5. Дополнительное ограничение по запросу \n","c) Тип переадресации (выбрать)\n1. Безусловная\n2. \"Неответ\"\n3. \"Занято\"\n","c) Новый пароль","c) Язык интерфейса",null,"3. Ограничение международных вызовов.\na) Добавить / изменить / удалить (выбрать)\n",null,null,"c) Активировать функцию Mobility \n1. Номер extension (внутренний twinning)\n2. Внешний номер (мобильный twinning)\n","ПРИМЕЧАНИЕ: требуется таблица или список соответствия номеров soft keys  требуемым функциям\n","с) Тоновый сигнал",null,"ПРИМЕЧАНИЕ: для выполнения данного задания может потребоваться проверка наличия соответствующих лицензий\n",null,null,null,"c) Ограничения вызовов (выбрать)\n1. Только внутренние вызовы.\n2. Междугородные и международные вызовы\n3. Международные вызовы\n4. Без ограничений\n5. Дополнительное ограничение по запросу \n","c) Тип переадресации (выбрать)\n1. Безусловная\n2. \"Неответ\"\n3. \"Занято\"\n","c) Новый пароль","c) Язык интерфейса",null,"3. Ограничение международных вызовов.\na) Добавить / изменить / удалить (выбрать)\n",null,"3. Конференция «на лету» Ad Hoc Conferencing (указать ТА): \na) Имя пользователя \nb) Номер extension\n","c) Внешний номер ","ПРИМЕЧАНИЕ: требуется таблица или список соответствия номеров soft keys  требуемым функциям","c) Текущая модель телефонного аппарата ","с) Тоновый сигнал",null,"ПРИМЕЧАНИЕ: для выполнения данного задания может потребоваться проверка наличия соответствующих лицензий",null," "," "," ",null,"ПРИМЕЧАНИЕ: если изменения необходимо провести для нескольких SteelHead, укажите соответствующие параметры для каждого","ПРИМЕЧАНИЕ: если изменения необходимо провести для нескольких SteelHead, укажите соответствующие параметры для каждого","ПРИМЕЧАНИЕ: если изменения необходимо провести для нескольких SteelHead, укажите соответствующие параметры для каждого","ПРИМЕЧАНИЕ: если изменения необходимо провести для нескольких SteelHead, укажите соответствующие параметры для каждого","ПРИМЕЧАНИЕ: если изменения необходимо провести для нескольких SteelHead, укажите соответствующие параметры для каждого","ПРИМЕЧАНИЕ: если изменения необходимо провести для нескольких SteelHead, укажите соответствующие параметры для каждого","ПРИМЕЧАНИЕ: если изменения необходимо провести для нескольких SteelHead, укажите соответствующие параметры для каждого","ПРИМЕЧАНИЕ: если изменения необходимо провести для нескольких SteelHead, укажите соответствующие параметры для каждого","ПРИМЕЧАНИЕ: если изменения необходимо провести для нескольких SteelHead, укажите соответствующие параметры для каждого","ПРИМЕЧАНИЕ: если изменения необходимо провести для нескольких SteelHead, укажите соответствующие параметры для каждого","ПРИМЕЧАНИЕ: если изменения необходимо провести для нескольких SteelHead, укажите соответствующие параметры для каждого","ПРИМЕЧАНИЕ: если изменения необходимо провести для нескольких SteelHead, укажите соответствующие параметры для каждого","ПРИМЕЧАНИЕ: если изменения необходимо провести для нескольких SteelHead, укажите соответствующие параметры для каждого","ПРИМЕЧАНИЕ: если изменения необходимо провести для нескольких SteelHead, укажите соответствующие параметры для каждого","ПРИМЕЧАНИЕ: если изменения необходимо провести для нескольких SteelHead, укажите соответствующие параметры для каждого","ПРИМЕЧАНИЕ: если изменения необходимо провести для нескольких SteelHead, укажите соответствующие параметры для каждого",null,"c) Маска сети",null,null,"c) Выбрать действие (добавить/удалить/изменить логин и (или) пароль)","c) Выбрать действие (добавить/удалить)",null,"c) Выбрать действие (добавить/удалить/изменить)",null,null,null,"c) Site1 (Platinum) и Site2 (Platinum)",null,null,null,"с) cписок VM или Folder, на который назначить права.",null,null,"c) тариф","c) новое количество пользователей на данном тарифе","c) добавить/удалить (указать действие)",null,null,null,null,null,"с) заблокировать / разблокировать (указать действие)",null,null,null,null,null,null,"c) Версия","c) Версия",null,null,null,null,null,null,null,null,null,null,null,"c) указать требуемое место расположения нужного участка карты на подложке","c) Должность пользователя \n","c) Должность пользователя \n","c) IP адрес ПК",null,null,"c) Должность пользователя \n","c) Должность пользователя \n"]
["параметр 4"," ",null," "," ",null,"d) Привязка PI адресов с AS клиента",null,null," ",null,null,null,null,null," ",null,null,"ПРИМЕЧАНИЕ: если изменения необходимо провести для нескольких коммутаторов, укажите соответствующие параметры для каждого"," ПРИМЕЧАНИЕ: если изменения необходимо провести для нескольких коммутаторов, укажите соответствующие параметры для каждого","ПРИМЕЧАНИЕ: если изменения необходимо провести для нескольких коммутаторов, укажите соответствующие параметры для каждого","ПРИМЕЧАНИЕ: если изменения необходимо провести для нескольких коммутаторов, укажите соответствующие параметры для каждого","ПРИМЕЧАНИЕ: для Portfast портов удалять BPDU Guard нельзя! \nЕсли изменения необходимо провести для нескольких коммутаторов, пожалуйста, укажите соответствующие параметры для каждого.\n\n","ПРИМЕЧАНИЕ: если изменения необходимо провести для нескольких коммутаторов, укажите соответствующие параметры для каждого","ПРИМЕЧАНИЕ: если изменения необходимо провести для нескольких коммутаторов, укажите соответствующие параметры для каждого","ПРИМЕЧАНИЕ: если изменения необходимо провести для нескольких коммутаторов, укажите соответствующие параметры для каждого","ПРИМЕЧАНИЕ: если изменения необходимо провести для нескольких коммутаторов, укажите соответствующие параметры для каждого","ПРИМЕЧАНИЕ: если изменения необходимо провести для нескольких коммутаторов, укажите соответствующие параметры для каждого","ПРИМЕЧАНИЕ: если изменения необходимо провести для нескольких коммутаторов, укажите соответствующие параметры для каждого","d) Добавить/удалить (выбрать)",null,null,null," "," ","d) CID, если есть",null," "," "," "," ",null,null,null,null,null,"d) Установить / изменить / снять переадресацию (выбрать)",null,null,null,"4. Без ограничений\na) Добавить / изменить / удалить (выбрать)\n",null,null,null,null,null,null,null,null,null,null,null,"d) Установить / изменить / снять переадресацию (выбрать)",null,null,null,"4. Без ограничений\na) Добавить / изменить / удалить (выбрать)\n",null,"4. Конференция при звонке на заданный номер конференции meet-me Conferencing (указать ТА): \na) Имя  пользователя\nb) Номер extension\nc) Кто может создавать конференцию\nd) Номер(а) конференции\n",null,null,"d) Новая модель телефонного аппарата ",null,null,null,null," "," "," ",null,null,null,null,null,null,null,null,null,null,null,null,null,null,null,null,null,null,"d) Номер inpath интерфейса в моделях riverbed с несколькими inpath",null,null,null,null,null,null,null,null,null,"d) Site1 (Platinum +) и Site2 (Platinum+)",null,null,null,null,null,null,"d) добавить/отключить (указать действие)","d) дата изменения",null,null,null,null,null,null,null,null,null,null,null,null,null,"d) Способ сбора","d) Выбрать действие: изменить/отключить",null,null,null,null,null,null,null,null,null,null,null,null,"d) Телефон пользователя ","d) Телефон пользователя ",null,null,null,"d) Телефон пользователя ","d) Телефон пользователя "]
["параметр 5"," ",null," "," ",null,null,null,null," ",null,null,null,null,null," ",null,null,null,null,null,null,null,null,null,null,null,null,null,null,null,null,null," "," ","e) Распределение трафика в %-ном соотношении:\n    Data 1 - %\n    Data 2 - %\n    Data 3 - %\n",null," "," "," "," ",null,null,null,null,null,null,null,null,null,"5. Дополнительное ограничение (направление, которое требуется ограничить)\na) Добавить / изменить / удалить (выбрать)\n",null,null,null,null,null,null,null,null,null,null,null,null,null,null,null,"5. Дополнительное ограничение (направление, которое требуется ограничить)\na) Добавить / изменить / удалить (выбрать)\n",null,"5. Cтатус «не беспокоить» do not disturb (указать ТА): \na) Имя  пользователя\nb) Номер extension\n",null,null,null,null,null,null,null," "," "," ",null,null,null,null,null,null,null,null,null,null,null,null,null,null,null,null,null,null,null,null,null,null,null,null,null,null,null,null,"e) Название vDC"]
["параметр 6"," ",null," "," ",null,null,null,null," ",null,null,null,null,null," ",null,null,null,null,null,null,null,null,null,null,null,null,null,null,null,null,null," "," ",null,null," "," "," "," ",null,null,null,null,null,null,null,null,null,null,null,null,null,null,null,null,null,null,null,null,null,null,null,null,null,null,null,"6. Вызов на группу абонентов Hunt Group: \na) Номер HG\nb) Участники данной HG \nc) Механизм распределения вызовов по следующему алгоритму распределения звонка (выбрать нужный) : \n                - Sequential (последовательный выбор по списку)\n                - Longest-Idle (наименее загруженный абонент данной группы)\n                - Parallel (одновременный вызов всех участников группы), другое название Call Blast\n",null,null,null,null,null,null,null," "," "," "]
["параметр 7"," ",null," "," ",null,null,null,null," ",null,null,null,null,null," ",null,null,null,null,null,null,null,null,null,null,null,null,null,null,null,null,null," "," ",null,null," "," "," "," ",null,null,null,null,null,null,null,null,null,null,null,null,null,null,null,null,null,null,null,null,null,null,null,null,null,null,null,"7. Мониторинг линии другого телефона BLF  (актуально для секретарей):\na) Номер extension абонента, который будет мониторить\nb) Номер extension абонента кого требуется мониторить\n",null,null,null,null,null,null,null," "," "," "]
["параметр 8"," ",null," "," ",null,null,null,null," ",null,null,null,null,null," ",null,null,null,null,null,null,null,null,null,null,null,null,null,null,null,null,null," "," ",null,null," "," "," "," ",null,null,null,null,null,null,null,null,null,null,null,null,null,null,null,null,null,null,null,null,null,null,null,null,null,null,null,"8. Группа перехвата  Call Pickup:\na) Порядковый номер группы\nb) Участники группы\n",null,null,null,null,null,null,null," "," "," "]
["параметр 9"," ",null," "," ",null,null,null,null," ",null,null,null,null,null," ",null,null,null,null,null,null,null,null,null,null,null,null,null,null,null,null,null," "," ",null,null," "," "," "," ",null,null,null,null,null,null,null,null,null,null,null,null,null,null,null,null,null,null,null,null,null,null,null,null,null,null,null,"9. Возможность принимать несколько вызовов, с тоном оповещения о поступлении нового вызова Call Waiting (указать ТА): \na) Имя  пользователя\nb) Номер extension\n",null,null,null,null,null,null,null," "," "," "]
["параметр 10"," ",null," "," ",null,null,null,null," ",null,null,null,null,null," ",null,null,null,null,null,null,null,null,null,null,null,null,null,null,null,null,null," "," ",null,null," "," "," "," ",null,null,null,null,null,null,null,null,null,null,null,null,null,null,null,null,null,null,null,null,null,null,null,null,null,null,null,"10. Одна линия (DN) на несколько телефонов Shared Line: \na) Указать телефонные аппараты, с общей линией \nb) Номер общей линии\n",null,null,null,null,null,null,null," "," "," "]
["параметр 11"," ",null," "," ",null,null,null,null," ",null,null,null,null,null," ",null,null,null,null,null,null,null,null,null,null,null,null,null,null,null,null,null," "," ",null,null," "," "," "," ",null,null,null,null,null,null,null,null,null,null,null,null,null,null,null,null,null,null,null,null,null,null,null,null,null,null,null,null,null,null,null,null,null,null,null," "," "," "]
["параметр 12"," ",null," "," ",null,null,null,null," ",null,null,null,null,null," ",null,null,null,null,null,null,null,null,null,null,null,null,null,null,null,null,null," "," ",null,null," "," "," "," ",null,null,null,null,null,null,null,null,null,null,null,null,null,null,null,null,null,null,null,null,null,null,null,null,null,null,null,null,null,null,null,null,null,null,null," "," "," "]
["параметр 13"," ",null," "," ",null,null,null,null," ",null,null,null,null,null," ",null,null,null,null,null,null,null,null,null,null,null,null,null,null,null,null,null," "," ",null,null," "," "," "," ",null,null,null,null,null,null,null,null,null,null,null,null,null,null,null,null,null,null,null,null,null,null,null,null,null,null,null,null,null,null,null,null,null,null,null," "," "," "]
["параметр 14"," ",null," "," ",null,null,null,null," ",null,null,null,null,null," ",null,null,null,null,null,null,null,null,null,null,null,null,null,null,null,null,null," "," ",null,null," "," "," "," ",null,null,null,null,null,null,null,null,null,null,null,null,null,null,null,null,null,null,null,null,null,null,null,null,null,null,null,null,null,null,null,null,null,null,null," "," "," "]
["параметр 15"," ",null," "," ",null,null,null,null," ",null,null,null,null,null," ",null,null,null,null,null,null,null,null,null,null,null,null,null,null,null,null,null," "," ",null,null," "," "," "," ",null,null,null,null,null,null,null,null,null,null,null,null,null,null,null,null,null,null,null,null,null,null,null,null,null,null,null,null,null,null,null,null,null,null,null," "," "," "]
["параметр 16"," ",null," "," ",null,null,null,null," ",null,null,null,null,null," ",null,null,null,null,null,null,null,null,null,null,null,null,null,null,null,null,null," "," ",null,null," "," "," "," ",null,null,null,null,null,null,null,null,null,null,null,null,null,null,null,null,null,null,null,null,null,null,null,null,null,null,null,null,null,null,null,null,null,null,null," "," "," "]
["параметр 17"," ",null," "," ",null,null,null,null," ",null,null,null,null,null," ",null,null,null,null,null,null,null,null,null,null,null,null,null,null,null,null,null," "," ",null,null," "," "," "," ",null,null,null,null,null,null,null,null,null,null,null,null,null,null,null,null,null,null,null,null,null,null,null,null,null,null,null,null,null,null,null,null,null,null,null," "," "," "]
["параметр 18"," ",null," "," ",null,null,null,null," ",null,null,null,null,null," ",null,null,null,null,null,null,null,null,null,null,null,null,null,null,null,null,null," "," ",null,null," "," "," "," ",null,null,null,null,null,null,null,null,null,null,null,null,null,null,null,null,null,null,null,null,null,null,null,null,null,null,null,null,null,null,null,null,null,null,null," "," "," "]
["параметр 19"," ",null," "," ",null,null,null,null," ",null,null,null,null,null," ",null,null,null,null,null,null,null,null,null,null,null,null,null,null,null,null,null," "," ",null,null," "," "," "," ",null,null,null,null,null,null,null,null,null,null,null,null,null,null,null,null,null,null,null,null,null,null,null,null,null,null,null,null,null,null,null,null,null,null,null," "," "," "]
["параметр 20"," ",null," "," ",null,null,null,null," ",null,null,null,null,null," ",null,null,null,null,null,null,null,null,null,null,null,null,null,null,null,null,null," "," ",null,null," "," "," "," ",null,null,null,null,null,null,null,null,null,null,null,null,null,null,null,null,null,null,null,null,null,null,null,null,null,null,null,null,null,null,null,null,null,null,null," "," "," "]
["параметр 21"," ",null," "," ",null,null,null,null," ",null,null,null,null,null," ",null,null,null,null,null,null,null,null,null,null,null,null,null,null,null,null,null," "," ",null,null," "," "," "," ",null,null,null,null,null,null,null,null,null,null,null,null,null,null,null,null,null,null,null,null,null,null,null,null,null,null,null,null,null,null,null,null,null,null,null," "," "," "]
["параметр 22"," ",null," "," ",null,null,null,null," ",null,null,null,null,null," ",null,null,null,null,null,null,null,null,null,null,null,null,null,null,null,null,null," "," ",null,null," "," "," "," ",null,null,null,null,null,null,null,null,null,null,null,null,null,null,null,null,null,null,null,null,null,null,null,null,null,null,null,null,null,null,null,null,null,null,null," "," "," "]
["параметр 23"," ",null," "," ",null,null,null,null," ",null,null,null,null,null," ",null,null,null,null,null,null,null,null,null,null,null,null,null,null,null,null,null," "," ",null,null," "," "," "," ",null,null,null,null,null,null,null,null,null,null,null,null,null,null,null,null,null,null,null,null,null,null,null,null,null,null,null,null,null,null,null,null,null,null,null," "," "," "]
["параметр 24"," ",null," "," ",null,null,null,null," ",null,null,null,null,null," ",null,null,null,null,null,null,null,null,null,null,null,null,null,null,null,null,null," "," ",null,null," "," "," "," ",null,null,null,null,null,null,null,null,null,null,null,null,null,null,null,null,null,null,null,null,null,null,null,null,null,null,null,null,null,null,null,null,null,null,null," "," "," "]
["параметр 25"," ",null," "," ",null,null,null,null," ",null,null,null,null,null," ",null,null,null,null,null,null,null,null,null,null,null,null,null,null,null,null,null," "," ",null,null," "," "," "," ",null,null,null,null,null,null,null,null,null,null,null,null,null,null,null,null,null,null,null,null,null,null,null,null,null,null,null,null,null,null,null,null,null,null,null," "," "," "]
["параметр 26"," ",null," "," ",null,null,null,null," ",null,null,null,null,null," ",null,null,null,null,null,null,null,null,null,null,null,null,null,null,null,null,null," "," ",null,null," "," "," "," ",null,null,null,null,null,null,null,null,null,null,null,null,null,null,null,null,null,null,null,null,null,null,null,null,null,null,null,null,null,null,null,null,null,null,null," "," "," "]
["параметр 27"," ",null," "," ",null,null,null,null," ",null,null,null,null,null," ",null,null,null,null,null,null,null,null,null,null,null,null,null,null,null,null,null," "," ",null,null," "," "," "," ",null,null,null,null,null,null,null,null,null,null,null,null,null,null,null,null,null,null,null,null,null,null,null,null,null,null,null,null,null,null,null,null,null,null,null," "," "," "]
["параметр 28"," ",null," "," ",null,null,null,null," ",null,null,null,null,null," ",null,null,null,null,null,null,null,null,null,null,null,null,null,null,null,null,null," "," ",null,null," "," "," "," ",null,null,null,null,null,null,null,null,null,null,null,null,null,null,null,null,null,null,null,null,null,null,null,null,null,null,null,null,null,null,null,null,null,null,null," "," "," "]
["параметр 29"," ",null," "," ",null,null,null,null," ",null,null,null,null,null," ",null,null,null,null,null,null,null,null,null,null,null,null,null,null,null,null,null," "," ",null,null," "," "," "," ",null,null,null,null,null,null,null,null,null,null,null,null,null,null,null,null,null,null,null,null,null,null,null,null,null,null,null,null,null,null,null,null,null,null,null," "," "," "]
["параметр 30"," ",null," "," ",null,null,null,null," ",null,null,null,null,null," ",null,null,null,null,null,null,null,null,null,null,null,null,null,null,null,null,null," "," ",null,null," "," "," "," ",null,null,null,null,null,null,null,null,null,null,null,null,null,null,null,null,null,null,null,null,null,null,null,null,null,null,null,null,null,null,null,null,null,null,null," "," "," "]
["параметр 31"," ",null," "," ",null,null,null,null," ",null,null,null,null,null," ",null,null,null,null,null,null,null,null,null,null,null,null,null,null,null,null,null," "," ",null,null," "," "," "," ",null,null,null,null,null,null,null,null,null,null,null,null,null,null,null,null,null,null,null,null,null,null,null,null,null,null,null,null,null,null,null,null,null,null,null," "," "," "]
["параметр 32"," ",null," "," ",null,null,null,null," ",null,null,null,null,null," ",null,null,null,null,null,null,null,null,null,null,null,null,null,null,null,null,null," "," ",null,null," "," "," "," ",null,null,null,null,null,null,null,null,null,null,null,null,null,null,null,null,null,null,null,null,null,null,null,null,null,null,null,null,null,null,null,null,null,null,null," "," "," "]

{"sheet":"List","index":12,"n_rows":21,"n_cols":32,"rows_kept":21,"cut":false,"hidden":true,"merged":[]}
["Internet_Direct","Internet_Direct_Registration","Internet_Umbrella","Internet_Direct_Domain","Managed_LAN","Business_VPN","Managed_Router","B2G_AVAYA","B2G_CISCO","Internet_VPN","EAM","Cloud_DC_ex.FCA","FCP","Yandex.Cloud_for_Business","AWS","Managed_Firewall","Connectivity_Encryption","CyberSOC","Maritime_VSAT ","Smart_Access_Standard","Ethernet_Link","LAN_TO_LAN_Managed_MWA","NPL","DWA","SD_WAN","IoT","Virtual_PBX","Access_to_Financial_Services","Access_to_SWIFT","Business_Talk","Orange_Smart_Track","Customer_Portal"]
["Политики динамической маршрутизации (BGP)","Изменение ресурсных записей","Изменение настроек для Объектов защиты ","DNS changing ","Simp_Изменение access VLAN на порту доступа коммутатора","Добавление/изменение/удаление маршрута на IPVPN порту","Конфигурация LAN порта","Simp_Изменение базовых параметров пользователя/ТА ","Simp_Изменение базовых параметров пользователя/ТА","Изменение логина и пароля для доступа на портал ","Simp_Добавление/изменение/удаление CIFS Prepopulation config","Изменение логина и (или) пароля доступа к Порталу","Change user accounts’ rights in the vCenter","Добавление/отключение подписок в Яндекс 360","Cоздание новых Учётных Записей AWS для Клиента ","Изменение конфигурации услуги","Добавление/Изменение/Удаление Access Control List (ACL) ","Подключить новый тип стандартного источника","Предоставление доступа к VSAT Portal","Предоставление доступа к VSAT Portal","Нестандартные изменения параметров ","Нестандартные изменения параметров ","Нестандартные изменения параметров ","Нестандартные изменения параметров ","Нестандартные изменения параметров ","Нестандартные изменения параметров ","Нестандартные изменения параметров ","Нестандартные изменения параметров ","Нестандартные изменения параметров ","Черный список ","Изменение чувствительности UWB-тэга","Предоставление доступа"]
["Нестандартные изменения параметров ","Изменение настроек АC в RIPE","Изменение E-mail для уведомлений от системы и предоставления ежемесячных отчетов","Нестандартные изменения параметров ","Simp_Изменение description на порту доступа коммутатора","Изменение политик маршрутизации на IPVPN порту","Добавление статических IP-маршрутов ","Simp_Изменение Speed Dial номеров  ","Simp_Изменение Speed Dial номеров ","Перевыпуск цифрового пользовательского сертификата","Simp_Удаление Data Store Sync","Изменение IP адресов, с которых клиенту разрешён доступ на Портал","Add new virtual LAN (VLAN)","Изменение количества пользователей в подписке Яндекс 360","Миграция существующих Учётных Записей AWS в Orange ","Нестандартные изменения параметров ","Запрос на выпуск сертификата ","Подключенный источник событий","Добавление/удаление пользователя","Добавление/удаление пользователя",null,null,null,null,null,null,null,null,null,null,"Изменение частоты опроса UWB-тэга"]
[null,"Изменение записей PA адресов в RIPE","Изменение логина/пароля для WEB-интерфейса ",null,"Simp_Изменение скорости/дуплекса порта доступа коммутатора","Изменение профиля трафика сервиса IPVPN GOLD в процентном соотношении между Data 1, Data 2 и Data 3","Изменение голосовых маршрутов ","Simp_Установка/изменение ограничений доступа к ТфОП ","Simp_Установка/изменение ограничений доступа к ТфОП ","Внесение изменений в план адресации ","Simp_Удаление политик QoS для нового приложения","Добавление клиентских VM/образов в VDC c FTPS сервера","Нестандартные изменения параметров ","Создание новых учётных записей Яндекса","Полное удаление Учётных Записей AWS Клиента ",null,"Нестандартные изменения параметров ","Используемый Use-case","Установка ПО OverSea на ПК на судне","Восстановление пароля на VSAT Portal",null,null,null,null,null,null,null,null,null,null,"Изменение уровня вибрации UWB-тэга"]
[null,"Изменение записей PI адресов в RIPE","Актуализация Технического опросника",null,"Simp_Изменение конфигурации Port Security на порту доступа ","Нестандартные изменения параметров ","Конфигурация и изменение списков доступа (ACL)","Simp_Установка/изменение/снятие переадресации ","Simp_Установка/изменение/снятие переадресации ","Нестандартные изменения параметров ","Simp_Изменение Hostname ","Добавление/изменение данных для авторизации на межсетевом экране ",null,null,"Исключение Учётных Записей AWS Клиента из Orange ",null,null,"Индикатор компрометации","Восстановление пароля на VSAT Portal","Нестандартные изменения параметров",null,null,null,null,null,null,null,null,null,null,"Изменение радиуса действия UWB-анкера"]
[null,"Изменение записей в обратной зоне DNS","Ручная загрузка Blacklist/Whitelist",null,"Simp_Добавление/удаление spanning tree portfast ",null,"Конфигурация LAN порта в режиме транк","Simp_Изменение/сброс пароля пользователя (PIN) ","Simp_Изменение/сброс пароля пользователя (PIN)",null,"Simp_Изменение  IP Name Server","Добавление ISO образов и шаблонов VM",null,null,"Нестандартные изменения параметров ",null,null,"VPN туннель","Нестандартные изменения параметров ",null,null,null,null,null,null,null,null,null,null,null,"Замена карты (подложки) сайта"]
[null,"Нестандартные изменения параметров ","Нестандартные изменения параметров ",null,"Simp_Добавление/удаление BPDU Guard на порту доступа ",null,"Нестандартные изменения параметров ","Simp_Изменение языка интерфейса ТА ","Simp_Изменение языка интерфейса ТА",null,"Simp_Очистка кэша","Выгрузка VM/образов с vDC на FTPS сервер Orange",null,null,null,null,null,"Удаленный доступ к SIEM"]
[null,null,null,null,"Simp_Включение/выключение Voice VLAN на порту доступа ",null,null,"Std_Add/Del операторов телефонной станции (Read-Only)","Std_Add/Del операторов телефонной станции (Read-Only)",null,"Simp_Add/Change/Delete в отчет секции по специфическому приложению","Изменение разрешённого количества шаблонов VM",null,null,null,null,null,"Доступ к системам (Customer portal и др.)"]
[null,null,null,null,"Simp_Изменение QoS trust на порту доступа коммутатора",null,null,"Std_Изменение классов ограничений выхода в ТфОП ","Std_Изменение классов ограничений выхода в ТфОП",null,"Simp_Удаление pass-through правила для приложения","Изменение распределения дисковой ёмкости в ГБ между ДЦ",null,null,null,null,null,"Информация о Клиенте"]
[null,null,null,null,"Simp_Включение/выключение порта доступа коммутатора",null,null,"Std_Изменение настроек Hunt Group ","Std_Изменение настроек Hunt Group",null,"Simp_Изменение настроек SNMP","Миграция Виртуальных машин с\\на площадку Клиента",null,null,null,null,null,"Нестандартные изменения параметров"]
[null,null,null,null,"Simp_Изменение списка пользователей Wi-Fi ",null,null,"Std_Добавление/изменение/удаление ДВО (доп.видов обслуживания)","Std_Добавление/изменение/удаление ДВО (доп.видов обслуживания)",null,"Simp_Добавление/изменение/удаление RBAC","Создание, изменение и удаление виртуальных сетей"]
[null,null,null,null,"Std_Изменение hostname коммутатора",null,null,"Std_Настройка Mobility (Twinning)","Std_Настройка Mobility (Single Number Rich)",null,"Std_Добавление/изменение/удаление CIFS Optimization with SMB Signing","Нестандартные изменения параметров "]
[null,null,null,null,"Std_Перевод порта доступа коммутатора в режим trunk",null,null,"Std_Изменения soft-key шаблонов ","Std_Изменения soft-key шаблонов",null,"Std_Добавление DataStore Sync"]
[null,null,null,null,"Std_Добавление/удаление новых VLAN на коммутаторе",null,null,"Std_Смена MOH ","Std_Смена типа ТА у пользователя",null,"Std_Изменение Primary IP адресации"]
[null,null,null,null,"Std_Add/Del новых VLAN на транк м/у коммутаторами",null,null,"Adv_Добавление/изменение  голосовых приветствий и оповещений ","Std_Смена MOH",null,"Std_Именение настроек Inpath interface MTU"]
[null,null,null,null,"Std_Изменения в общих настройках Spanning Tree ",null,null,"Adv_Изменение настроек соединительных/транковых линий ","Adv_Добавление/изменение голосовых приветствий и оповещений",null,"Std_Добавление или удаление настроек MAPI"]
[null,null,null,null,"Нестандартные изменения параметров ",null,null,"Нестандартные изменения параметров ","Adv_Изменение настроек соединительных/транковых линий",null,"Std_Добавление или удаление настроек MAPI Prepopulation"]
[null,null,null,null,null,null,null,null,"Нестандартные изменения параметров ",null,"Adv_Inpath Data VLAN changing/deleting "]
[null,null,null,null,null,null,null,null,null,null,"Adv_Inpath IP address changing"]
[null,null,null,null,null,null,null,null,null,null,"Adv_SSL License adding/deleting"]
[null,null,null,null,null,null,null,null,null,null,"Нестандартные изменения параметров "]

{"sheet":"MFW","index":13,"n_rows":51,"n_cols":42,"rows_kept":51,"cut":false,"hidden":true,"merged":[[29,1,30,1],[0,1,0,2],[6,1,6,2],[27,1,28,1],[19,1,21,1],[11,1,12,2]]}
[null,null,null,null,null,null,null,null,null,"Enable","Modify","Host","Local","Yes","Static","Accept","No logging","ver. 1","AES-128","SHA1","Block","Allow","LAN","Cisco","Static NAT","Regular","Active",1,"Local","Inbound","disabled","disabled","Round Trip","HTTP/HTTPS","Download","Subject","MAIL","Automatic","Very Low","Client","Appliance","HTTP/HTTPS"]
[null,null,null,null,null,null,null,null,null,"Disable","Add","Network","Remote","No","OSPF","Deny","Log All","ver. 2","AES-192","SHA256","Allow","Deny","WAN","Checkpoint","Dynamic NAT","Stub","Passive",2,"CA","Outbound","sparse-mode","v1","Round Robin","All","Upload","Header","HTTP","By Administrator","Low","Server","Cloud","CITRIX"]
[null,null,null,null,null,null,null,null,null,null,"Delete","IP range","None",null,"BGP",null,"Alerts",null,"AES-256","SHA384","Warning",null,"DMZ","Fortigate","PAT","NSSA","Disabled",null,"Remote","Bi-directional","dense-mode","v2","Static",null,"Both",null,"FTP",null,"Medium","Both",null,"FTP"]
[null,null,null,null,null,null,null,null,null,null,null,"FQDN",null,null,"Interface",null,null,null,"DES","MD5","Monitor",null,"Undefined",null,null,null,null,null,null,null,null,"v3",null,null,null,null,"ALL",null,"High",null,null,"PortForward"]
[null,null,null,null,null,null,null,null,null,null,null,"Network Group",null,null,null,null,null,null,"3DES",null,null,null,null,null,null,null,null,null,null,null,null,null,null,null,null,null,null,null,"Critical",null,null,"RDP"]
[null,null,null,null,null,null,null,null,null,null,null,null,null,null,null,null,null,null,null,null,null,null,null,null,null,null,null,null,null,null,null,null,null,null,null,null,null,null,null,null,null,"SMB/CIFS"]
[null,null,null,null,null,null,null,null,null,null,null,null,null,null,null,null,null,null,null,null,null,null,null,null,null,null,null,null,null,null,null,null,null,null,null,null,null,null,null,null,null,"SSH"]
[null,null,null,null,null,null,null,null,null,null,null,null,null,null,null,null,null,null,null,null,null,null,null,null,null,null,null,null,null,null,null,null,null,null,null,null,null,null,null,null,null,"TELNET"]
[null,null,null,null,null,null,null,null,null,null,null,null,null,null,null,null,null,null,null,null,null,null,null,null,null,null,null,null,null,null,null,null,null,null,null,null,null,null,null,null,null,"VNC"]
[]
[]
[null,"Выберите необходимые опции для конфигурации или изменений и перейдите в соответствующий лист для предоставления необходимой информации:"]
[]
[null,"Системные параметры","System Settings"]
[null,"Сетевые объекты","Network Object Definition"]
[null,"Сервисные объекты","Service Object Definition"]
[null,"Конфигурация интерфейса ","Interface configuration (VLAN/Antispoofing/DMZ)"]
[null,"Статическая маршрутизация","Static routing"]
[null,"Кластер высокой доступности","HA Cluster"]
[null,"Динамическая маршрутизация (Dynamic Routing Protocols)","OSPF"]
[null,null,"RIP"]
[null,null,"BGP"]
[null,"Настройка Bidirectional Forwarding Detection","BFD"]
[null,"Настройка Policy-Based Routing","Policy-Based Routing"]
[null,"Политики доступа","Firewall security policy"]
[null,"Трансляция адресов","Network Address Translation (NAT)"]
[null,"Настройка Proxy ARP","Proxy ARP"]
[null,"Настройка Site-to-Site VPN","GRE"]
[null,null,"IPSec"]
[null,"Удаленный доступ","SSL VPN"]
[null,null,"Remote access VPN"]
[null,"Фильтрация веб-трафика","Web Filtering"]
[null,"Фильтрация трафика приложений","Application Filtering"]
[null,"Проверка трафика HTTPS","HTTPS Inspection"]
[null,"Контроль трафика на уровне стран","Geo Policy"]
[null,"Система обнаружения/предотвращения вторжений","Intrusion Prevention System"]
[null,"Система защиты от вирусов, бот-сетей","Malware Protection"]
[null,"Система защиты от неизвестных угроз и целевых атак","Sandbox"]
[null,"Прокси-сервер","Explicit Proxy"]
[null,"Файрвол веб-приложений","Web application firewall (Fortinet)"]
[null,"Защита от ботнет сетей","Botnet Protection"]
[null,"Система идентификации пользователей","User Identity"]
[null,"Система защиты DNS обращений","DNS Protection / Botnet Protection"]
[]
[null,"Нестандартные дополнительные настройки"]
[null,"Система защиты от утечки данных","Data Loss Prevention"]
[null,"Система защиты почты","Email Security"]
[null,"Фильтрация трафика по типу файлов и ключевым словам","Content Control"]
[null,"Настройка Multicast","Multicast Routing"]
[null,"Сервер DHCP","DHCP Server"]
[null,"Сертификаты","Certificates"]

{"sheet":"Botnet Protection","index":14,"n_rows":2,"n_cols":3,"rows_kept":2,"cut":false,"hidden":true,"merged":[]}
[]
["Hostname","IP","Enable/Disable (all traffic)"]

{"sheet":"WAF","index":15,"n_rows":7,"n_cols":4,"rows_kept":7,"cut":false,"hidden":true,"merged":[]}
[]
["Hostname","IP","Rule Number","Enable/Disable"]
[null,null,1]
[null,null,2]
[null,null,3]
[null,null,4]
[null,null,5]

{"sheet":"System Settings","index":16,"n_rows":2,"n_cols":15,"rows_kept":2,"cut":false,"hidden":true,"merged":[]}
[]
["Operation","Firewall name","Vendor","Model","Hostname","Management IP","DNS Severs","NTP Severs","Timezone","Log Storage","SMTP Severs","Domain ","Read-only username","Trusted IP Addresses","Comment "]

{"sheet":"Network Object Definition","index":17,"n_rows":3,"n_cols":5,"rows_kept":3,"cut":false,"hidden":true,"merged":[]}
[]
["Operation","Object name","Object type","IP address/mask","Comment "]
["Modify"]

{"sheet":"Service Object Definition","index":18,"n_rows":6,"n_cols":10,"rows_kept":6,"cut":false,"hidden":true,"merged":[]}
[null,null,null,null,null,null,null,null,null,"TCP"]
["Operation","Service name/service group name ","Protocol","Destination Port Number","Source Port Number ","Comment",null,null,null,"UDP"]
[null,null,null,null,null,null,null,null,null,"ICMP"]
[null,null,null,null,null,null,null,null,null,"IP"]
[]
[null,null,null,null,null,null,null,null,null,"IP"]

{"sheet":"Interface configuration","index":19,"n_rows":2,"n_cols":10,"rows_kept":2,"cut":false,"hidden":true,"merged":[]}
[]
["Operation","Firewall name","Interface Name","VLAN","Network Segment (LAN / WAN / DMZ)","IP Address/Netmask","Cluster virtual IP","Cluster interface monitoring","DHCP Relay ","Comment "]

{"sheet":"HA Cluster","index":20,"n_rows":2,"n_cols":8,"rows_kept":2,"cut":false,"hidden":true,"merged":[]}
[]
["Operation","Cluster Name","Active Firewall Name","Backup Firewall name","Sync Interface Number","Active FW Mgmt IP","Backup FW Mgmt IP","Comment "]

{"sheet":"DHCP Server","index":21,"n_rows":2,"n_cols":10,"rows_kept":2,"cut":false,"hidden":true,"merged":[]}
[]
["Operation","Firewall name","Interface Name","IP Ranges ","Netmask","Default Gateway ","DNS Servers ","NTP Server ","DHCP Options ","Comment "]

{"sheet":"Firewall Policy","index":22,"n_rows":12,"n_cols":23,"rows_kept":12,"cut":false,"hidden":true,"merged":[]}
[]
["Operation","Firewall name","Rule name","Rule position","Source","Destination","Incoming Interface (Fortinet)","Outgoing Interface (Fortinet)","Service","Policy Action","Logging Policy","VPN name","NAT","SSL Inspection","Web Filtering","Application Control","Content Control","Data Loss Prevention","Malware Protection","IPS","User/Group","Schedule","Comment "]
["Modify"]
[]
[]
[]
[]
[]
[]
[]
[]
[null,null,null,null,null,null,null,null," "]

{"sheet":"NAT","index":23,"n_rows":8,"n_cols":15,"rows_kept":8,"cut":false,"hidden":true,"merged":[[1,0,2,0],[1,1,2,1],[1,14,2,14],[1,6,1,9],[1,2,2,2],[1,10,1,13],[1,3,2,3],[1,4,2,4],[1,5,2,5]]}
[]
["Operation","Firewall name","Rule Number","Type ","Incoming Interface\n(Source Interface Object)","Outgoing Interface\n(Destination Interface Object)","Original Packet Details",null,null,null,"Translated Packet Details",null,null,null,"Comment "]
[null,null,null,null,null,null,"Source IP Address","Destination IP Address","Source Port","Destination Port","Source IP Address","Destination IP Address","Source Port","Destination Port"]
[null,null,1]
[null,null,2]
[null,null,3]
[null,null,4]
[null,null,5]

{"sheet":"Static routing","index":24,"n_rows":2,"n_cols":7,"rows_kept":2,"cut":false,"hidden":true,"merged":[]}
[]
["Operation","Firewall name","Destination IP address/mask","Next Hop","Interface Name","Priotity","Comment "]

{"sheet":"Proxy ARP","index":25,"n_rows":2,"n_cols":5,"rows_kept":2,"cut":false,"hidden":true,"merged":[]}
[]
["Operation","Firewall name","Interface Name","IP Address","Comment "]

{"sheet":"BGP","index":26,"n_rows":9,"n_cols":10,"rows_kept":9,"cut":false,"hidden":true,"merged":[]}
[]
["Operation","Firewall name","BGP Local AS Number","Router ID","Redistribute Connected","Redistribute RIP","Redistribute OSPF","Redistribute Static"]
[]
[]
[]
[]
[]
[]
["Operation","Firewall name","BGP Neighbor IP Address","Neighbor AS number","Redistribution from:","Routes for redistributing","Input filters","Ouput filters","Override AS number","Comment "]

{"sheet":"RIP","index":27,"n_rows":16,"n_cols":8,"rows_kept":16,"cut":false,"hidden":true,"merged":[]}
[]
["Operation","Firewall name","RIP Version","Redistribute Connected","Redistribute BGP","Redistribute OSPF","Redistribute Static","Comment "]
[]
[]
[]
[]
[]
[]
["Operation","Firewall name","Networks","Comment "]
[]
[]
[]
[]
[]
[]
["Operation","Firewall name","Interface","Status","Comment "]

{"sheet":"OSPF","index":28,"n_rows":23,"n_cols":8,"rows_kept":23,"cut":false,"hidden":true,"merged":[]}
[]
["Operation","Firewall name","Router ID","Redistribute Connected","Redistribute RIP","Redistribute BGP","Redistribute Static","Comment "]
[]
[]
[]
[]
[]
[]
["Operation","Firewall name","Area ID","Area Type","Comment "]
[]
[]
[]
[]
[]
[]
["Operation","Firewall name","Networks","Area ID","Comment "]
[]
[]
[]
[]
[]
[]
["Operation","Firewall name","Interface","Status","Comment "]

{"sheet":"VPN Site-to-Site GRE","index":29,"n_rows":2,"n_cols":9,"rows_kept":2,"cut":false,"hidden":true,"merged":[]}
[]
["Operation","Firewall name","Tunnel interface name","Tunnel IP address/mask","Tunnel source IP","Tunnel destination IP","Tunnel MTU","Tunnel MSS","Comment "]

{"sheet":"VPN Site-to-Site IPSec","index":30,"n_rows":4,"n_cols":21,"rows_kept":4,"cut":false,"hidden":true,"merged":[[1,20,3,20],[1,0,3,0],[1,1,3,1],[1,3,3,3],[1,2,3,2],[1,6,3,6],[1,5,3,5],[1,4,3,4],[2,7,2,14],[2,15,2,19],[1,7,1,19]]}
[]
["Operation","Firewall name","VPN name","Remote Peer IP","Local Peer IP","Local subnets","Remote subnets","IPSEC Parameters",null,null,null,null,null,null,null,null,null,null,null,null,"Comment"]
[null,null,null,null,null,null,null,"Phase 1",null,null,null,null,null,null,null,"Phase 2"]
[null,null,null,null,null,null,null,"IKE Version","Encryption Algorithm","Hash Algorithm","DH group","Key Lifetime","PSK/Certificate","DPD","Nat Traversal","Encryption Algorithm","Key Lifetime","Hash Algorithm","PFS","DH group"]

{"sheet":"Web Filtering","index":31,"n_rows":7,"n_cols":7,"rows_kept":7,"cut":false,"hidden":true,"merged":[]}
[]
["Operation","Rule Number","URL / Category","Checked Ports","Action","Limits","Comment "]
[null,1]
[null,2]
[null,3]
[null,4]
[null,5]

{"sheet":"HTTPS Inspection","index":32,"n_rows":7,"n_cols":10,"rows_kept":7,"cut":false,"hidden":true,"merged":[]}
[]
["Operation","Firewall name","Rule Number","Certificate","Exceptions","Comment "]
[null,null,1]
[null,null,2,null,null,null,null,null,null," "]
[null,null,3]
[null,null,4]
[null,null,5]

{"sheet":"Geo Protection","index":33,"n_rows":2,"n_cols":7,"rows_kept":2,"cut":false,"hidden":true,"merged":[]}
[]
["Operation","Firewall name","Region","Direction","Policy Action","Logging Policy","Comment "]

{"sheet":"BFD","index":34,"n_rows":2,"n_cols":7,"rows_kept":2,"cut":false,"hidden":true,"merged":[]}
[]
["Operation","Firewall name","Enable","Minimal Transmit Interval","Minimal Receive Interval","Detect Multiplier","Comment "]

{"sheet":"Multicast Routing","index":35,"n_rows":2,"n_cols":6,"rows_kept":2,"cut":false,"hidden":true,"merged":[]}
[]
["Operation","Firewall name","Interface Name","PIM","IGMP","Comment "]

{"sheet":"Policy-Based Routing","index":36,"n_rows":2,"n_cols":9,"rows_kept":2,"cut":false,"hidden":true,"merged":[]}
[]
["Operation","Firewall name","Condition: Incoming Interface","Condition: Source","Condition: Destination","Condition: Service","Gateway","Outgoing Interface","Comment "]

{"sheet":"DNS Protection","index":37,"n_rows":2,"n_cols":5,"rows_kept":2,"cut":false,"hidden":true,"merged":[]}
[]
["Operation","Firewall name","Botnet Blocking","Local DNS Servers","Comment "]

{"sheet":"Certificates","index":38,"n_rows":7,"n_cols":10,"rows_kept":7,"cut":false,"hidden":true,"merged":[]}
[]
["Operation","Firewall name","Certificate Number","Certificate Filename","Certificate Type","Comment "]
[null,null,1]
[null,null,2,null,null,null,null,null,null," "]
[null,null,3]
[null,null,4]
[null,null,5]

{"sheet":"Application Control","index":39,"n_rows":7,"n_cols":5,"rows_kept":7,"cut":false,"hidden":true,"merged":[]}
[]
["Operation","Rule Number","Application / Category","Action","Comment "]
[null,1]
[null,2]
[null,3]
[null,4]
[null,5]

{"sheet":"Content Control","index":40,"n_rows":7,"n_cols":6,"rows_kept":7,"cut":false,"hidden":true,"merged":[]}
[]
["Operation","Rule Number","File Types / Keywords","Action","Traffic Direction","Comment "]
[null,1]
[null,2]
[null,3]
[null,4]
[null,5]

{"sheet":"User Identity","index":41,"n_rows":15,"n_cols":10,"rows_kept":15,"cut":false,"hidden":true,"merged":[]}
["LDAP"]
["Operation","Firewall name","LDAP Number","LDAP Servers","Query Username","Query Password","CN Identifier","DN","Certificate","Comment "]
[null,null,1]
[null,null,2]
[null,null,3]
[null,null,4]
[null,null,5]
[]
["RADIUS"]
["Operation","Firewall name","Radius Number","Radius Servers","Radius key","Comment "]
[null,null,1]
[null,null,2]
[null,null,3]
[null,null,4]
[null,null,5]

{"sheet":"Email Security","index":42,"n_rows":2,"n_cols":8,"rows_kept":2,"cut":false,"hidden":true,"merged":[]}
[]
["Operation","Firewall name","Extended Filtering","Tag Location","Tag","White List","Black List","Comment "]

{"sheet":"DLP","index":43,"n_rows":7,"n_cols":12,"rows_kept":7,"cut":false,"hidden":true,"merged":[]}
[]
["Operation","Rule Number","Service","Keywords","File Types","Fule Names","Archive","Encrypted Files","File Size (MB)","Action","Email Domain","Comment "]
[null,1]
[null,2]
[null,3]
[null,4]
[null,5]

{"sheet":"Explicit Proxy","index":44,"n_rows":2,"n_cols":4,"rows_kept":2,"cut":false,"hidden":true,"merged":[]}
[]
["Operation","Firewall name","Proxy Port","Comment "]

{"sheet":"Malware Protection","index":45,"n_rows":7,"n_cols":12,"rows_kept":7,"cut":false,"hidden":true,"merged":[]}
[]
["Operation","Rule Number","Traffic Direction","Service","Signatures","Reputation","Archives","Anomalies","Extraction","File Types","Action","Comment "]
[null,1]
[null,2]
[null,3]
[null,4]
[null,5]

{"sheet":"IPS","index":46,"n_rows":7,"n_cols":11,"rows_kept":7,"cut":false,"hidden":true,"merged":[]}
[]
["Operation","Rule Number","Scheduled Updates ","Updates","HighLoad Bypass","Severity","Target Side","Target Operating System","Performance","Action","Comment "]
[null,1]
[null,2]
[null,3]
[null,4]
[null,5]

{"sheet":"Sandbox","index":47,"n_rows":2,"n_cols":9,"rows_kept":2,"cut":false,"hidden":true,"merged":[]}
[]
["Operation","Firewall name","Traffic Direction","Service","File Types","Sandbox Type","Sandbox Location","Emulation","Comment "]

{"sheet":"Remote Access VPN","index":48,"n_rows":2,"n_cols":13,"rows_kept":2,"cut":false,"hidden":true,"merged":[]}
[]
["Operation","Firewall name","Pool IP Range","PSK","Certificate","Certificate CA","Group Name","Incoming Interface","Local Interface","Local subnets","DNS","Split Tunnel","Comment "]

{"sheet":"SSL VPN","index":49,"n_rows":2,"n_cols":17,"rows_kept":2,"cut":false,"hidden":true,"merged":[]}
[]
["Operation","Firewall name","VPN Name","Incoming Interface","Portal Address","Pool IP Range","Local subnets","Server Certificate","Require Client Certificate","DNS","Split Tunnel","Group Name","Bookmark Name","Bookmark Type","Bookmark Access","Download Client","Comment "]